{"text_format":"1","workbook":"xlsx","n_sheets":6,"sheets":["COACHES WORKSHEET","NYS Place finishers","ROSTER REVIEW","Points Verification","Sec 6 Place Finishers 2020-21","Class Tournament info"],"not_rendered":{"charts":0,"images":0,"macros":1,"external_links":0,"defined_names":12,"comments":0,"pivot_tables":0},"unopened":[],"bounds":{"document_bytes":16777216,"sheet_cells":100000,"rows_first":2000,"rows_last":500,"rows_between":2000,"halvings":0,"cell_chars":16384,"cell_head_chars":4096},"cells_cut":0,"cells_raw":0,"read":"whole","date_system":"1900"}

{"sheet":"COACHES WORKSHEET","index":0,"n_rows":458,"n_cols":42,"rows_kept":458,"cut":false,"hidden":false,"merged":[]}
[null,"School:","Enter School Here",null,null,null,"Win/Loss Points",null,"Placement Points",null,"Sec. 6 Competition pts",null,"NY Competition Points","Class Tourn Place pts","Class Tourn Bonus pts"]
[null,"Weight","Wrestlers","GR","W","L",null,"2021 Place Finishes",null,"Sect. 6 Competition Pts.",null,"NYS Competition Points",null,null,null,"Total pts."]
[1,null,null,null,null,null,{"$f":"IFERROR(IF(AND((E3+F3)>0,(E3+F3)<10),ROUND(E3/SUM(E3+F3)*50,0),IF((E3+F3)<20,ROUND(E3/SUM(E3+F3)*75,0),IF((E3+F3)>19,ROUND(E3/SUM(E3+F3)*100,0)))),\"0\")","v":"0"},"Did Not Place",{"$f":"VLOOKUP(H3,$Q$4:$R$37,2,FALSE)","v":0},"NO WINS OVER SEC 6 PLACERS",{"$f":"VLOOKUP(J3,$Z$3:$AH$379,9,FALSE)","v":0},"NO WINS OVER STATE COMPETITION",{"$f":"VLOOKUP(L3,$AJ$3:$AN$245,5,FALSE)","v":0},0,0,{"$f":"SUM(G3,I3,K3,K4,K5,K6,K7,K8,K9,K10,M3,M4,M5,M6,N3,O3)","v":0},null,null,null,"Enter School Here",null,null,null,null,null,"NO WINS OVER SEC 6 PLACERS",null,null,null,null,null,null,null,0,null,"NO WINS OVER STATE COMPETITION"]
[null,null,null,null,null,null,1,null,null,"NO WINS OVER SEC 6 PLACERS",0,"NO WINS OVER STATE COMPETITION",{"$f":"VLOOKUP(L4,$AJ$3:$AN$245,5,FALSE)","v":0},null,null,null," ",0,null,"AKR",null,null,7,102,null,"Amilcar Morales - ALB","ALBION",2,12,138,null,4,null,6,null,"MITCHELL GAISER - Alexander",null,null,null,18]
[null,"Head to head wins over potentially",null,null,null,null,2,null,null,"NO WINS OVER SEC 6 PLACERS",0,"NO WINS OVER STATE COMPETITION",0,null,null,null,"Did Not Place",0,null,"ALB",null,null,8,110,null,"Alex Hafner - ALB","ALBION",2,12,152,null,5,null,4,null,"TIM BOVA - Arlington",null,null,null,16]
[null,"seedable wrestlers in this weight class.",null,null,null,null,3,null,null,"NO WINS OVER SEC 6 PLACERS",0,"NO WINS OVER STATE COMPETITION",0,null,null,null,"1st in NYS",120,120,"AMH",null,null,9,118,null,"Payton Mack - AMH","AMHERST",1,11,102,null,3,null,8,null,"CASPER STEWART - Att-Batavia",null,null,null,30]
[null,null,null,null,null,null,4,null,null,"NO WINS OVER SEC 6 PLACERS",0,null,null,null,null,null,"2nd in NYS",110,100,"CHAUT",null,null,10,126,null,"Quinlan Lyle - AMH","AMHERST",1,9,110,null,7,null,1,null,"MAX GALLAGHER - Bay-Blue Pt",null,null,null,34]
[null,null,null,null,null,null,5,null,null,"NO WINS OVER SEC 6 PLACERS",0,null,null,null,null,null,"3rd in NYS",100,90,"CHEEK",null,null,11,132,null,"Mark Testa - AMH","AMHERST",1,12,132,null,8,null,1,null,"CHRISTOPHER CRAWFORD - Beacon",null,null,null,22]
[null,null,null,null,null,null,6,null,null,"NO WINS OVER SEC 6 PLACERS",0,null,null,null,null,null,"4th in NYS",90,87,"CLAR",null,null,12,138,null,"Giovanni Russo - AMH","AMHERST",1,12,145,null,5,null,4,null,"CONNOR BUSHEY - Beekman",null,null,null,12]
[null,null,null,null,null,null,7,null,null,"NO WINS OVER SEC 6 PLACERS",0,null,null,null,null,null,"5th in NYS",80,84,"CSAT",null,null,null,145,null,"Jake LeClerc - AMH","AMHERST",1,12,160,null,4,null,6,null,"DARREN FLORANCE - BGAH",null,null,null,18]
[null,null,null,null,"W","L",8,null,null,null,null,null,null,null,null,null,"6th in NYS",70,81,"DUNK",null,null,null,152,null,"Jordan Joslyn - CHAUT","CHAUTAUQUA LAKE",2,10,110,null,2,null,10,null,"JOEY FLORANCE- BGAH",null,null,null,16]
[2,null,null,null,null,null,{"$f":"IFERROR(IF(AND((E12+F12)>0,(E12+F12)<10),ROUND(E12/SUM(E12+F12)*50,0),IF((E12+F12)<20,ROUND(E12/SUM(E12+F12)*75,0),IF((E12+F12)>19,ROUND(E12/SUM(E12+F12)*100,0)))),\"0\")","v":"0"},"Did Not Place",{"$f":"VLOOKUP(H12,$Q$4:$R$37,2,FALSE)","v":0},"NO WINS OVER SEC 6 PLACERS",{"$f":"VLOOKUP(J12,$Z$3:$AH$379,9,FALSE)","v":0},"NO WINS OVER STATE COMPETITION",{"$f":"VLOOKUP(L12,$AJ$3:$AN$245,5,FALSE)","v":0},0,0,{"$f":"SUM(G12,I12,K12,K13,K14,K15,K16,K17,K18,K19,M12,M13,M14,M15,N12,O12)","v":0},"7th in NYS",65,78,"EA HOLL",null,null,null,160,null,"Martin Ohlsson - CHAUT","CHAUTAUQUA LAKE",2,11,126,null,4,null,22,null,"JUSTIN FORTUGNO - Briarcliff",null,null,null,12]
[null,null,null,null,null,null,1,null,null,"NO WINS OVER SEC 6 PLACERS",0,"NO WINS OVER STATE COMPETITION",{"$f":"VLOOKUP(L13,$AJ$3:$AN$245,5,FALSE)","v":0},null,null,null,"8th in NYS",60,75,"EDEN",null,null,null,172,null,"Jack Bourgeois - CHAUT","CHAUTAUQUA LAKE",2,11,132,null,8,null,1,null,"ISAIAH RODRIGUEZ - Brock",null,null,null,14]
[null,"Head to head wins over potentially",null,null,null,null,2,null,null,"NO WINS OVER SEC 6 PLACERS",0,"NO WINS OVER STATE COMPETITION",0,null,null,null,"1st in NYS >2 Wts",110,72,"FALC",null,null,null,189,null,"Jayden Malecki - CHAUT","CHAUTAUQUA LAKE",2,10,138,null,7,null,1,null,"TYLER ROSSINI - Burnt Hills",null,null,null,12]
[null,"seedable wrestlers in this weight class.",null,null,null,null,3,null,null,"NO WINS OVER SEC 6 PLACERS",0,"NO WINS OVER STATE COMPETITION",0,null,null,null,"2nd in NYS >2 Wts",100,69,"FRANK",null,null,null,215,null,"John Watson - CHAUT","CHAUTAUQUA LAKE",2,10,172,null,6,null,3,null,"GAVIN BOB - Canisteo-Green",null,null,null,12]
[null,null,null,null,null,null,4,null,null,"NO WINS OVER SEC 6 PLACERS",0,null,null,null,null,null,"3rd in NYS >2 Wts",90,66,"FRED",null,null,null,285,null,"Matthew Cox - CLAR","CLARENCE",1,8,102,null,6,null,3,null,"XAVIER DEJESUS-REMCH  -Canisteo-Green",null,null,null,34]
[null,null,null,null,null,null,5,null,null,"NO WINS OVER SEC 6 PLACERS",0,null,null,null,null,null,"4th in NYS >2 Wts",80,63,"FREWS",null,null,null,null,null,"AJ Didas - CLAR","CLARENCE",1,9,118,null,4,null,6,null,"BRAIDON WOODWARD - Canisteo-Green",null,null,null,12]
[null,null,null,null,null,null,6,null,null,"NO WINS OVER SEC 6 PLACERS",0,null,null,null,null,null,"5th in NYS >2 Wts",70,60,"FRONT",null,null,null,null,null,"Brandon Heh - CLAR","CLARENCE",1,12,126,null,7,null,1,null,"KOLE MULHAUSER - Central Square",null,null,null,30]
[null,null,null,null,null,null,7,null,null,"NO WINS OVER SEC 6 PLACERS",0,null,null,null,null,null,"6th in NYS >2 Wts",60,57,"GOW",null,null,null,null,null,"Anthany Dagostino - CLAR","CLARENCE",1,12,132,null,7,null,1,null,"SHANE MEENAGHAN - Chaminade",null,null,null,16]
[null,null,null,null,"W","L",8,null,null,null,null,null,null,null,null,null,"7th in NYS >2 Wts",55,54,"GI",null,null,null,null,null,"Ben Feltz - CLAR","CLARENCE",1,12,152,null,6,null,3,null,"TYLER FERRARA - Chenango Forks",null,null,null,34]
[3,null,null,null,null,null,{"$f":"IFERROR(IF(AND((E21+F21)>0,(E21+F21)<10),ROUND(E21/SUM(E21+F21)*50,0),IF((E21+F21)<20,ROUND(E21/SUM(E21+F21)*75,0),IF((E21+F21)>19,ROUND(E21/SUM(E21+F21)*100,0)))),\"0\")","v":"0"},"Did Not Place",{"$f":"VLOOKUP(H21,$Q$4:$R$37,2,FALSE)","v":0},"NO WINS OVER SEC 6 PLACERS",{"$f":"VLOOKUP(J21,$Z$3:$AH$379,9,FALSE)","v":0},"NO WINS OVER STATE COMPETITION",{"$f":"VLOOKUP(L21,$AJ$3:$AN$245,5,FALSE)","v":0},0,0,{"$f":"SUM(G21,I21,K21,K22,K23,K24,K25,K26,K27,K28,M21,M22,M23,M24,N21,O21)","v":0},"8th in NYS >2 Wts",50,51,"HAM",null,null,null,null,null,"Andrew Le - CLAR","CLARENCE",1,12,152,null,8,null,1,null,"JORDAN SORIANO - Clarke",null,null,null,22]
[null,null,null,null,null,null,1,null,null,"NO WINS OVER SEC 6 PLACERS",0,"NO WINS OVER STATE COMPETITION",{"$f":"VLOOKUP(L22,$AJ$3:$AN$245,5,FALSE)","v":0},null,null,null,"1st in Section",50,48,"IRQ",null,null,null,null,null,"Jax Schoenthal - EAH","EAST AURORA HOLL",2,11,132,null,7,null,1,null,"JACKSON POLO - Cold Spring",null,null,null,30]
[null,"Head to head wins over potentially",null,null,null,null,2,null,null,"NO WINS OVER SEC 6 PLACERS",0,"NO WINS OVER STATE COMPETITION",0,null,null,null,"2nd in Section",40,45,"JAMES",null,null,null,null,null,"Nolan Skowronski - EAH","EAST AURORA HOLL",2,12,106,null,5,null,4,null,"SEAN TANSEY - Collegiate School",null,null,null,12]
[null,"seedable wrestlers in this weight class.",null,null,null,null,3,null,null,"NO WINS OVER SEC 6 PLACERS",0,"NO WINS OVER STATE COMPETITION",0,null,null,null,"3rd in Section",30,42,"KENTON",null,null,null,null,null,"Travor DellaPenta - EDEN","EDEN",2,8,102,null,2,null,10,null,"CHASE NEVILLS - Copenhagen",null,null,null,12]
[null,null,null,null,null,null,4,null,null,"NO WINS OVER SEC 6 PLACERS",0,null,null,null,null,null,"4th in Section",20,39,"LACK",null,null,null,null,null,"Bryce DellaPenta - EDEN","EDEN",2,8,102,null,5,null,4,null,"ETHAN HART - Corning",null,null,null,12]
[null,null,null,null,null,null,5,null,null,"NO WINS OVER SEC 6 PLACERS",0,null,null,null,null,null,"5th in Section",10,36,"LAKE SH",null,null,null,null,null,"Johnny Vicario - EDEN","EDEN",2,12,126,null,2,null,10,null,"ETHAN RANDALL - Dolgeville",null,null,null,12]
[null,null,null,null,null,null,6,null,null,"NO WINS OVER SEC 6 PLACERS",0,null,null,null,null,null,"6th in Section",5,33,"LANC",null,null,null,null,null,"Shane Walczyk - EDEN","EDEN",2,12,145,null,1,null,12,null,"CAMERON MAYFIELD - Eagle Academy",null,null,null,14]
[null,null,null,null,null,null,7,null,null,"NO WINS OVER SEC 6 PLACERS",0,null,null,null,null,null,"7th in Section",2,null,"LEW PORT",null,null,null,null,null,"Connor Gleason - EDEN","EDEN",2,12,145,null,7,null,1,null,"MITCHELL BARCUS - Eagle Academy",null,null,null,12]
[null,null,null,null,"W","L",8,null,null,null,null,null,null,null,null,null,"8th in Section",2,null,"LOCK",null,null,null,null,null,"Karsen Lundgren - FALC","FALCONER",2,11,110,null,6,null,3,null,"XAVIER GILES - Eagle Academy",null,null,null,12]
[4,null,null,null,null,null,{"$f":"IFERROR(IF(AND((E30+F30)>0,(E30+F30)<10),ROUND(E30/SUM(E30+F30)*50,0),IF((E30+F30)<20,ROUND(E30/SUM(E30+F30)*75,0),IF((E30+F30)>19,ROUND(E30/SUM(E30+F30)*100,0)))),\"0\")","v":"0"},"Did Not Place",{"$f":"VLOOKUP(H30,$Q$4:$R$37,2,FALSE)","v":0},"NO WINS OVER SEC 6 PLACERS",{"$f":"VLOOKUP(J30,$Z$3:$AH$379,9,FALSE)","v":0},"NO WINS OVER STATE COMPETITION",{"$f":"VLOOKUP(L30,$AJ$3:$AN$245,5,FALSE)","v":0},0,0,{"$f":"SUM(G30,I30,K30,K31,K32,K33,K34,K35,K36,K37,M30,M31,M32,M33,N30,O30)","v":0},"1st in Sect. >2 Wts",40,30,"MAPLE",null,null,null,null,null,"Vinnie Bloomberg - FALC","FALCONER",2,12,126,null,8,null,1,null,"SANDER MILLER - Edgemont",null,null,null,12]
[null,null,null,null,null,null,1,null,null,"NO WINS OVER SEC 6 PLACERS",0,"NO WINS OVER STATE COMPETITION",{"$f":"VLOOKUP(L31,$AJ$3:$AN$245,5,FALSE)","v":0},null,null,null,"2nd in Sect. >2 Wts",30,27,"MARY",null,null,null,null,null,"Austin Chase - FALC","FALCONER",2,11,132,null,3,null,8,null,"JAKE HOFFMANN - Fox Lane",null,null,null,22]
[null,"Head to head wins over potentially",null,null,null,null,2,null,null,"NO WINS OVER SEC 6 PLACERS",0,"NO WINS OVER STATE COMPETITION",0,null,null,null,"3rd in Sect. >2 Wts",20,24,"MED",null,null,null,null,null,"Jacob Clark - FALC","FALCONER",2,11,138,null,3,null,8,null,"FREDDY PAGAN - Fulton",null,null,null,12]
[null,"seedable wrestlers in this weight class.",null,null,null,null,3,null,null,"NO WINS OVER SEC 6 PLACERS",0,"NO WINS OVER STATE COMPETITION",0,null,null,null,"4th in Sect. >2 Wts",10,21,"NEW",null,null,null,null,null,"Dalton Caldwell - FALC","FALCONER",2,11,145,null,5,null,4,null,"DAVID O'NEIL - General Brown",null,null,null,12]
[null,null,null,null,null,null,4,null,null,"NO WINS OVER SEC 6 PLACERS",0,null,null,null,null,null,"5th in Sect. >2 Wts",5,18,"NF",null,null,null,null,null,"Brodie Little - FALC","FALCONER",2,11,152,null,7,null,1,null,"AVI BERG - Glens Falls",null,null,null,12]
[null,null,null,null,null,null,5,null,null,"NO WINS OVER SEC 6 PLACERS",0,null,null,null,null,null,"6th in Sect. >2 Wts",3,15,"NW",null,null,null,null,null,"Bryant Morrison - FALC","FALCONER",2,11,160,null,7,null,1,null,"ZOE GRIFFITH - Gouverneur",null,null,null,12]
[null,null,null,null,null,null,6,null,null,"NO WINS OVER SEC 6 PLACERS",0,null,null,null,null,null,"7th in Sect.>2 Wts.",1,null,"NT",null,null,null,null,null,"Devyn Morrison - FALC","FALCONER",2,10,215,null,5,null,4,null,"TRAYTON TUPPER - Gouverneur",null,null,null,12]
[null,null,null,null,null,null,7,null,null,"NO WINS OVER SEC 6 PLACERS",0,null,null,null,null,null,"8th in Sect. >2 Wts.",1,null,"OLEAN/ALL-LIMESTONE",null,null,null,null,null,"Dalton Wolcott - FRED","FREDONIA",2,10,152,null,8,null,1,null,"VANDAVIAN WAY - Gouverneur",null,null,null,12]
[null,null,null,null,"W","L",8,null,null,null,null,null,null,null,null,null,null,null,null,"OP",null,null,null,null,null,"Hunter Larson - FRED","FREDONIA",2,12,172,null,4,null,6,null,"CARTER BAER - Gouverneur",null,null,null,40]
[5,null,null,null,null,null,{"$f":"IFERROR(IF(AND((E39+F39)>0,(E39+F39)<10),ROUND(E39/SUM(E39+F39)*50,0),IF((E39+F39)<20,ROUND(E39/SUM(E39+F39)*75,0),IF((E39+F39)>19,ROUND(E39/SUM(E39+F39)*100,0)))),\"0\")","v":"0"},"Did Not Place",{"$f":"VLOOKUP(H39,$Q$4:$R$37,2,FALSE)","v":0},"NO WINS OVER SEC 6 PLACERS",{"$f":"VLOOKUP(J39,$Z$3:$AH$379,9,FALSE)","v":0},"NO WINS OVER STATE COMPETITION",{"$f":"VLOOKUP(L39,$AJ$3:$AN$245,5,FALSE)","v":0},0,0,{"$f":"SUM(G39,I39,K39,K40,K41,K42,K43,K44,K45,K46,M39,M40,M41,M42,N39,O39)","v":0},null,null,null,"PION",null,null,null,null,null,"Dawson Russo - FRED","FREDONIA",2,11,172,null,8,null,1,null,"ISAIAS TORRES - Grand Street",null,null,null,12]
[null,null,null,null,null,null,1,null,null,"NO WINS OVER SEC 6 PLACERS",0,"NO WINS OVER STATE COMPETITION",{"$f":"VLOOKUP(L40,$AJ$3:$AN$245,5,FALSE)","v":0},null,null,null,null,null,null,"PORT",null,null,null,null,null,"Russell Steward - FREWS","FREWSBURG",2,11,138,null,8,null,1,null,"KIERAN CULLEN - Greenville",null,null,null,14]
[null,"Head to head wins over potentially",null,null,null,null,2,null,null,"NO WINS OVER SEC 6 PLACERS",0,"NO WINS OVER STATE COMPETITION",0,null,null,null,null,null,null,"RAND",null,null,null,null,null,"Jamison Caldwell - FREWS","FREWSBURG",2,9,215,null,6,null,3,null,"COLE JOSEPH - Hackley",null,null,null,12]
[null,"seedable wrestlers in this weight class.",null,null,null,null,3,null,null,"NO WINS OVER SEC 6 PLACERS",0,"NO WINS OVER STATE COMPETITION",0,null,null,null,null,null,null,"ROYHART",null,null,null,null,null,"Cullen Edwards - FRONT","FRONTIER",1,8,102,null,5,null,4,null,"MIKEY MANTA - Hauppauge",null,null,null,30]
[null,null,null,null,null,null,4,null,null,"NO WINS OVER SEC 6 PLACERS",0,null,null,null,null,null,null,null,null,"SAL",null,null,null,null,null,"Travis Browning - FRONT","FRONTIER",1,12,118,null,2,null,16,null,"JOSEPH MANFREDI - Herricks",null,null,null,34]
[null,null,null,null,null,null,5,null,null,"NO WINS OVER SEC 6 PLACERS",0,null,null,null,null,null,null,null,null,"SOUTH",null,null,null,null,null,"Nick Baco - FRONT","FRONTIER",1,12,215,null,5,null,4,null,"ROCCO CAMILLACI - Hilton",null,null,null,30]
[null,null,null,null,null,null,6,null,null,"NO WINS OVER SEC 6 PLACERS",0,null,null,null,null,null,null,null,null,"SPRING",null,null,null,null,null,"Konrad Krzyszton - FRONT","FRONTIER",1,12,285,null,3,null,8,null,"SAM SORENSON - Homer",null,null,null,22]
[null,null,null,null,null,null,7,null,null,"NO WINS OVER SEC 6 PLACERS",0,null,null,null,null,null,null,null,null,"STAR",null,null,null,null,null,"Drew Mascio - FRONT","FRONTIER",1,12,285,null,7,null,1,null,"PATRICK STEINBAUGH - Horace Mann",null,null,null,12]
[null,null,null,null,"W","L",8,null,null,null,null,null,null,null,null,null,null,null,null,"SWEET",null,null,null,null,null,"Mike Ball - GOW","GOWANDA",2,10,102,null,3,null,8,null,"RYAN MASSENGALE - Horseheads",null,null,null,12]
[6,null,null,null,null,null,{"$f":"IFERROR(IF(AND((E48+F48)>0,(E48+F48)<10),ROUND(E48/SUM(E48+F48)*50,0),IF((E48+F48)<20,ROUND(E48/SUM(E48+F48)*75,0),IF((E48+F48)>19,ROUND(E48/SUM(E48+F48)*100,0)))),\"0\")","v":"0"},"Did Not Place",{"$f":"VLOOKUP(H48,$Q$4:$R$37,2,FALSE)","v":0},"NO WINS OVER SEC 6 PLACERS",{"$f":"VLOOKUP(J48,$Z$3:$AH$379,9,FALSE)","v":0},"NO WINS OVER STATE COMPETITION",{"$f":"VLOOKUP(L48,$AJ$3:$AN$245,5,FALSE)","v":0},0,0,{"$f":"SUM(G48,I48,K48,K49,K50,K51,K52,K53,K54,K55,M48,M49,M50,M51,N48,O48)","v":0},null,null,null,"TON",null,null,null,null,null,"Nik Massaro - GI","GRAND ISLAND",1,10,118,null,7,null,1,null,"JAIR GOMEZ - Ichabod Crane",null,null,null,16]
[null,null,null,null,null,null,1,null,null,"NO WINS OVER SEC 6 PLACERS",0,"NO WINS OVER STATE COMPETITION",{"$f":"VLOOKUP(L49,$AJ$3:$AN$245,5,FALSE)","v":0},null,null,null,null,null,null,"WSW/E DEP",null,null,null,null,null,"Brian Bielic - GI","GRAND ISLAND",1,12,172,null,1,null,12,null,"ALEX BOOTH - Indian River",null,null,null,12]
[null,"Head to head wins over potentially",null,null,null,null,2,null,null,"NO WINS OVER SEC 6 PLACERS",0,"NO WINS OVER STATE COMPETITION",0,null,null,null,null,null,null,"WILL N/E",null,null,null,null,null,"Ken Schmitz - HAM","HAMBURG",1,11,102,null,1,null,12,null,"AIDEN POE - Indian River",null,null,null,12]
[null,"seedable wrestlers in this weight class.",null,null,null,null,3,null,null,"NO WINS OVER SEC 6 PLACERS",0,"NO WINS OVER STATE COMPETITION",0,null,null,null,null,null,null,"WILL SO",null,null,null,null,null,"Jeff Leavell - HAM","HAMBURG",1,11,189,null,7,null,1,null,"DANNY PARKER - Ithaca",null,null,null,12]
[null,null,null,null,null,null,4,null,null,"NO WINS OVER SEC 6 PLACERS",0,null,null,null,null,null,null,null,null,"WILS",null,null,null,null,null,"Connor VanDusen - HAM","HAMBURG",1,12,215,null,8,null,1,null,"VINCENT ZICCARDI - Kings Park",null,null,null,14]
[null,null,null,null,null,null,5,null,null,"NO WINS OVER SEC 6 PLACERS",0,null,null,null,null,null,null,null,null,null,null,null,null,null,null,"Peter Gaglio - IRQ","IROQUOIS",2,12,118,null,4,null,6,null,"KILLIAN FOY - Macarthur",null,null,null,26]
[null,null,null,null,null,null,6,null,null,"NO WINS OVER SEC 6 PLACERS",0,null,null,null,null,null,null,null,null,null,null,null,null,null,null,"Michael Schiffhauer - IRQ","IROQUOIS",2,12,126,null,1,null,16,null,"ANGELO CENTRONE - Mahopac",null,null,null,16]
[null,null,null,null,null,null,7,null,null,"NO WINS OVER SEC 6 PLACERS",0,null,null,null,null,null,null,null,null,null,null,null,null,null,null,"Ethan Pfeiffer - IRQ","IROQUOIS",2,12,145,null,8,null,1,null,"LUCAS MARTIN - Malone",null,null,null,12]
[null,null,null,null,"W","L",8,null,null,null,null,null,null,null,null,null,null,null,null,null,null,null,null,null,null,"Ryan Sweeney - IRQ","IROQUOIS",2,12,132,null,1,null,12,null,"BRODY FOUNTAIN - Malone",null,null,null,12]
[7,null,null,null,null,null,{"$f":"IFERROR(IF(AND((E57+F57)>0,(E57+F57)<10),ROUND(E57/SUM(E57+F57)*50,0),IF((E57+F57)<20,ROUND(E57/SUM(E57+F57)*75,0),IF((E57+F57)>19,ROUND(E57/SUM(E57+F57)*100,0)))),\"0\")","v":"0"},"Did Not Place",{"$f":"VLOOKUP(H57,$Q$4:$R$37,2,FALSE)","v":0},"NO WINS OVER SEC 6 PLACERS",{"$f":"VLOOKUP(J57,$Z$3:$AH$379,9,FALSE)","v":0},"NO WINS OVER STATE COMPETITION",{"$f":"VLOOKUP(L57,$AJ$3:$AN$245,5,FALSE)","v":0},0,0,{"$f":"SUM(G57,I57,K57,K58,K59,K60,K61,K62,K63,K64,M57,M58,M59,M60,N57,O57)","v":0},null,null,null,null,null,null,null,null,null,"Brenden Dargavel - IRQ","IROQUOIS",2,12,285,null,6,null,3,null,"CARL SANTARIELLO - Marcellus-Onond",null,null,null,18]
[null,null,null,null,null,null,1,null,null,"NO WINS OVER SEC 6 PLACERS",0,"NO WINS OVER STATE COMPETITION",{"$f":"VLOOKUP(L58,$AJ$3:$AN$245,5,FALSE)","v":0},null,null,null,null,null,null,null,null,null,null,null,null,"Connor Bush - JAMES","JAMESTOWN",1,10,102,null,8,null,1,null,"COLDEN HARDY - Massena",null,null,null,12]
[null,"Head to head wins over potentially",null,null,null,null,2,null,null,"NO WINS OVER SEC 6 PLACERS",0,"NO WINS OVER STATE COMPETITION",0,null,null,null,null,null,null,null,null,null,null,null,null,"Aidan Senear - JAMES","JAMESTOWN",1,10,110,null,6,null,3,null,"ETHAN DONNELLY - Massena",null,null,null,12]
[null,"seedable wrestlers in this weight class.",null,null,null,null,3,null,null,"NO WINS OVER SEC 6 PLACERS",0,"NO WINS OVER STATE COMPETITION",0,null,null,null,null,null,null,null,null,null,null,null,null,"Gavin Stevens - KENTON","KENTON",1,10,110,null,5,null,4,null,"NATHAN ROURKE - Massena",null,null,null,12]
[null,null,null,null,null,null,4,null,null,"NO WINS OVER SEC 6 PLACERS",0,null,null,null,null,null,null,null,null,null,null,null,null,null,null,"Sawyer Dickinson - KENTON","KENTON",1,8,118,null,8,null,1,null,"ALEX SEMENENKO - McKee Staten Isl",null,null,null,34]
[null,null,null,null,null,null,5,null,null,"NO WINS OVER SEC 6 PLACERS",0,null,null,null,null,null,null,null,null,null,null,null,null,null,null,"Barakat Sahi - KENTON","KENTON",1,12,145,null,7,null,1,null,"TEDDY RAES - Midlakes",null,null,null,12]
[null,null,null,null,null,null,6,null,null,"NO WINS OVER SEC 6 PLACERS",0,null,null,null,null,null,null,null,null,null,null,null,null,null,null,"Connor Grohman - KENTON","KENTON",1,12,215,null,3,null,8,null,"PETER DUKE - Minisink",null,null,null,40]
[null,null,null,null,null,null,7,null,null,"NO WINS OVER SEC 6 PLACERS",0,null,null,null,null,null,null,null,null,null,null,null,null,null,null,"Ibrahim Alberri - LACK","LACKAWANNA",2,12,138,null,6,null,3,null,"ZACK RYDER - Minisink",null,null,null,40]
[null,null,null,null,"W","L",8,null,null,null,null,null,null,null,null,null,null,null,null,null,null,null,null,null,null,"Blake Hageman - LAKE","LAKE SHORE",2,11,118,null,6,null,3,null,"ETHAN GALLO - Minisink",null,null,null,18]
[8,null,null,null,null,null,{"$f":"IFERROR(IF(AND((E66+F66)>0,(E66+F66)<10),ROUND(E66/SUM(E66+F66)*50,0),IF((E66+F66)<20,ROUND(E66/SUM(E66+F66)*90,0),IF((E66+F66)>19,ROUND(E66/SUM(E66+F66)*100,0)))),\"0\")","v":"0"},"Did Not Place",{"$f":"VLOOKUP(H66,$Q$4:$R$37,2,FALSE)","v":0},"NO WINS OVER SEC 6 PLACERS",{"$f":"VLOOKUP(J66,$Z$3:$AH$379,9,FALSE)","v":0},"NO WINS OVER STATE COMPETITION",{"$f":"VLOOKUP(L66,$AJ$3:$AN$245,5,FALSE)","v":0},0,0,{"$f":"SUM(G66,I66,K66,K67,K68,K69,K70,K71,K72,K73,M66,M67,M68,M69,N66,O66)","v":0},null,null,null,null,null,null,null,null,null,"Myles Gronowski - LANC","LANCASTER",1,12,126,null,3,null,8,null,"MICHAEL ALTOMER - Minisink",null,null,null,22]
[null,null,null,null,null,null,1,null,null,"NO WINS OVER SEC 6 PLACERS",0,"NO WINS OVER STATE COMPETITION",{"$f":"VLOOKUP(L67,$AJ$3:$AN$245,5,FALSE)","v":0},null,null,null,null,null,null,null,null,null,null,null,null,"Carter Tadusz - LANC","LANCASTER",1,11,138,null,2,null,10,null,"CLAYTON O'CONNOR - Mohonasen",null,null,null,12]
[null,"Head to head wins over potentially",null,null,null,null,2,null,null,"NO WINS OVER SEC 6 PLACERS",0,"NO WINS OVER STATE COMPETITION",0,null,null,null,null,null,null,null,null,null,null,null,null,"Ethan Monin - LANC","LANCASTER",1,12,145,null,3,null,8,null,"JORDAN BROWN - Monroe Woodbury",null,null,null,18]
[null,"seedable wrestlers in this weight class.",null,null,null,null,3,null,null,"NO WINS OVER SEC 6 PLACERS",0,"NO WINS OVER STATE COMPETITION",0,null,null,null,null,null,null,null,null,null,null,null,null,"Michael Schaefer - LANC","LANCASTER",1,10,152,null,2,null,10,null,"MICHAEL ADAMS - Mons Farrell",null,null,null,22]
[null,null,null,null,null,null,4,null,null,"NO WINS OVER SEC 6 PLACERS",0,null,null,null,null,null,null,null,null,null,null,null,null,null,null,"Kaleb Schurkus - LANC","LANCASTER",1,12,120,null,5,null,4,null,"BRAYDEN FAHRBACH - Mt Sinai",null,null,null,30]
[null,null,null,null,null,null,5,null,null,"NO WINS OVER SEC 6 PLACERS",0,null,null,null,null,null,null,null,null,null,null,null,null,null,null,"Evan Stencel - LANC","LANCASTER",1,11,172,null,4,null,6,null,"STEVEN BURRELL - New Rochelle",null,null,null,12]
[null,null,null,null,null,null,6,null,null,"NO WINS OVER SEC 6 PLACERS",0,null,null,null,null,null,null,null,null,null,null,null,null,null,null,"Caden Barrientos - LEW","LEW PORT",2,10,110,null,4,null,6,null,"JACKSON MERLI - Newburgh",null,null,null,12]
[null,null,null,null,null,null,7,null,null,"NO WINS OVER SEC 6 PLACERS",0,null,null,null,null,null,null,null,null,null,null,null,null,null,null,"James Marshall - LEW","LEW PORT",2,11,189,null,2,null,10,null,"BRAYDEN WALL - Ogdensburg",null,null,null,12]
[null,null,null,null,"W","L",8,null,null,null,null,null,null,null,null,null,null,null,null,null,null,null,null,null,null,"Jaron Barrientos - LEW","LEW-PORT",2,9,102,null,6,null,3,null,"ARCHIE GREEN - Ogdensburg",null,null,null,12]
[9,null,null,null,null,null,{"$f":"IFERROR(IF(AND((E75+F75)>0,(E75+F75)<10),ROUND(E75/SUM(E75+F75)*50,0),IF((E75+F75)<20,ROUND(E75/SUM(E75+F75)*75,0),IF((E75+F75)>19,ROUND(E75/SUM(E75+F75)*100,0)))),\"0\")","v":"0"},"Did Not Place",{"$f":"VLOOKUP(H75,$Q$4:$R$37,2,FALSE)","v":0},"NO WINS OVER SEC 6 PLACERS",{"$f":"VLOOKUP(J75,$Z$3:$AH$379,9,FALSE)","v":0},"NO WINS OVER STATE COMPETITION",{"$f":"VLOOKUP(L75,$AJ$3:$AN$245,5,FALSE)","v":0},0,0,{"$f":"SUM(G75,I75,K75,K76,K77,K78,K79,K80,K81,K82,M75,M76,M77,M78,N75,O75)","v":0},null,null,null,null,null,null,null,null,null,"Maleah McKinney-Updegraph - LOCK","LOCKPORT",1,11,110,null,8,null,1,null,"JACKSON WAINWRIGHT - Our Lady of Lourdes",null,null,null,12]
[null,null,null,null,null,null,1,null,null,"NO WINS OVER SEC 6 PLACERS",0,"NO WINS OVER STATE COMPETITION",{"$f":"VLOOKUP(L76,$AJ$3:$AN$245,5,FALSE)","v":0},null,null,null,null,null,null,null,null,null,null,null,null,"Kevin Daskavitz - LOCK","LOCKPORT",1,12,182,null,2,null,10,null,"ASHTON SEYMOUR - Peru",null,null,null,12]
[null,"Head to head wins over potentially",null,null,null,null,2,null,null,"NO WINS OVER SEC 6 PLACERS",0,"NO WINS OVER STATE COMPETITION",0,null,null,null,null,null,null,null,null,null,null,null,null,"Stefaan Fearon - LOCK","LOCKPORT",1,12,285,null,1,null,12,null,"KADIN JOHNSON - Peru",null,null,null,12]
[null,"seedable wrestlers in this weight class.",null,null,null,null,3,null,null,"NO WINS OVER SEC 6 PLACERS",0,"NO WINS OVER STATE COMPETITION",0,null,null,null,null,null,null,null,null,null,null,null,null,"Mason Kraft - MAPLE","MAPLE GROVE",2,10,126,null,7,null,1,null,"NICK PANKO - Pittsford",null,null,null,26]
[null,null,null,null,null,null,4,null,null,"NO WINS OVER SEC 6 PLACERS",0,null,null,null,null,null,null,null,null,null,null,null,null,null,null,"Lucas Tomlinson - MAPLE","MAPLE GROVE",2,12,138,null,2,null,10,null,"CHRISTIAN PERLLESHI - Pleasantville",null,null,null,12]
[null,null,null,null,null,null,5,null,null,"NO WINS OVER SEC 6 PLACERS",0,null,null,null,null,null,null,null,null,null,null,null,null,null,null,"Dominick Callara - MED","MEDINA",2,11,102,null,1,null,12,null,"TREVOR TUFANO - Port Jervis",null,null,null,12]
[null,null,null,null,null,null,6,null,null,"NO WINS OVER SEC 6 PLACERS",0,null,null,null,null,null,null,null,null,null,null,null,null,null,null,"RaShawn Bloom - MED","MEDINA",2,12,118,null,5,null,4,null,"RYAN ROSS - Port Jervis",null,null,null,12]
[null,null,null,null,null,null,7,null,null,"NO WINS OVER SEC 6 PLACERS",0,null,null,null,null,null,null,null,null,null,null,null,null,null,null,"Noah Skinner - MED","MEDINA",2,11,215,null,7,null,1,null,"RYAN KIRKER - Red Hook",null,null,null,12]
[null,null,null,null,"W","L",8,null,null,null,null,null,null,null,null,null,null,null,null,null,null,null,null,null,null,"Ayden Buttery - NEW","NEWFANE",2,9,110,null,3,null,8,null,"NICK LAMORTE - Rocky Point",null,null,null,12]
[10,null,null,null,null,null,{"$f":"IFERROR(IF(AND((E84+F84)>0,(E84+F84)<10),ROUND(E84/SUM(E84+F84)*50,0),IF((E84+F84)<20,ROUND(E84/SUM(E84+F84)*75,0),IF((E84+F84)>19,ROUND(E84/SUM(E84+F84)*100,0)))),\"0\")","v":"0"},"Did Not Place",{"$f":"VLOOKUP(H84,$Q$4:$R$37,2,FALSE)","v":0},"NO WINS OVER SEC 6 PLACERS",{"$f":"VLOOKUP(J84,$Z$3:$AH$379,9,FALSE)","v":0},"NO WINS OVER STATE COMPETITION",{"$f":"VLOOKUP(L84,$AJ$3:$AN$245,5,FALSE)","v":0},0,0,{"$f":"SUM(G84,I84,K84,K85,K86,K87,K88,K89,K90,K91,M84,M85,M86,M87,N84,O84)","v":0},null,null,null,null,null,null,null,null,null,"Aiden Gillings - NEW","NEWFANE",2,9,118,null,2,null,26,null,"ASHTON THOMPSON - Rome Free Acad",null,null,null,12]
[null,null,null,null,null,null,1,null,null,"NO WINS OVER SEC 6 PLACERS",0,"NO WINS OVER STATE COMPETITION",{"$f":"VLOOKUP(L85,$AJ$3:$AN$245,5,FALSE)","v":0},null,null,null,null,null,null,null,null,null,null,null,null,"Adam Huntington - NEW","NEWFANE",2,12,126,null,6,null,3,null,"JAYDEN SCOTT - Rush Henrietta",null,null,null,34]
[null,"Head to head wins over potentially",null,null,null,null,2,null,null,"NO WINS OVER SEC 6 PLACERS",0,"NO WINS OVER STATE COMPETITION",0,null,null,null,null,null,null,null,null,null,null,null,null,"Simon Lingle - NEW","NEWFANE",2,12,215,null,3,null,8,null,"CESAR MORALEZ - Rye Country Day",null,null,null,12]
[null,"seedable wrestlers in this weight class.",null,null,null,null,3,null,null,"NO WINS OVER SEC 6 PLACERS",0,"NO WINS OVER STATE COMPETITION",0,null,null,null,null,null,null,null,null,null,null,null,null,"Charles Larose - NEW","NEWFANE",2,12,285,null,1,null,12,null,"TYVAUGHN JONES - Rye Country Day",null,null,null,12]
[null,null,null,null,null,null,4,null,null,"NO WINS OVER SEC 6 PLACERS",0,null,null,null,null,null,null,null,null,null,null,null,null,null,null,"Eian Peterson - NF","NIAGARA FALLS",1,9,102,null,7,null,1,null,"SEAN SMITH - Rye Country Day",null,null,null,12]
[null,null,null,null,null,null,5,null,null,"NO WINS OVER SEC 6 PLACERS",0,null,null,null,null,null,null,null,null,null,null,null,null,null,null,"Jaden Crumpler - NF","NIAGARA FALLS",1,11,110,null,1,null,12,null,"RYAN DEVINS - Saranac",null,null,null,12]
[null,null,null,null,null,null,6,null,null,"NO WINS OVER SEC 6 PLACERS",0,null,null,null,null,null,null,null,null,null,null,null,null,null,null,"Ja'Shad Bumpers - NF","NIAGARA FALLS",1,12,110,null,3,null,8,null,"COLLIN CLANCY - Saranac",null,null,null,12]
[null,null,null,null,null,null,7,null,null,"NO WINS OVER SEC 6 PLACERS",0,null,null,null,null,null,null,null,null,null,null,null,null,null,null,"Amarfio Reynolds - NF","NIAGARA FALLS",1,11,118,null,1,null,12,null,"HUNTER DEVINS - Saranac",null,null,null,12]
[null,null,null,null,"W","L",8,null,null,null,null,null,null,null,null,null,null,null,null,null,null,null,null,null,null,"Mike Syposs - NF","NIAGARA FALLS",1,11,126,null,5,null,4,null,"MICHAEL SANTORE - Shaker",null,null,null,12]
[11,null,null,null,null,null,{"$f":"IFERROR(IF(AND((E93+F93)>0,(E93+F93)<10),ROUND(E93/SUM(E93+F93)*50,0),IF((E93+F93)<20,ROUND(E93/SUM(E93+F93)*75,0),IF((E93+F93)>19,ROUND(E93/SUM(E93+F93)*100,0)))),\"0\")","v":"0"},"Did Not Place",{"$f":"VLOOKUP(H93,$Q$4:$R$37,2,FALSE)","v":0},"NO WINS OVER SEC 6 PLACERS",{"$f":"VLOOKUP(J93,$Z$3:$AH$379,9,FALSE)","v":0},"NO WINS OVER STATE COMPETITION",{"$f":"VLOOKUP(L93,$AJ$3:$AN$245,5,FALSE)","v":0},0,0,{"$f":"SUM(G93,I93,K93,K94,K95,K96,K97,K98,K99,K100,M93,M94,M95,M96,N93,O93)","v":0},null,null,null,null,null,null,null,null,null,"Grady Peterson - NF","NIAGARA FALLS",1,11,132,null,4,null,6,null,"RYAN STEIN - Shaker",null,null,null,12]
[null,null,null,null,null,null,1,null,null,"NO WINS OVER SEC 6 PLACERS",0,"NO WINS OVER STATE COMPETITION",{"$f":"VLOOKUP(L94,$AJ$3:$AN$245,5,FALSE)","v":0},null,null,null,null,null,null,null,null,null,null,null,null,"Darren Christian - NF","NIAGARA FALLS",1,12,138,null,5,null,4,null,"CRAIG JABLONSKI - Shoreham Wading River",null,null,null,22]
[null,"Head to head wins over potentially",null,null,null,null,2,null,null,"NO WINS OVER SEC 6 PLACERS",0,"NO WINS OVER STATE COMPETITION",0,null,null,null,null,null,null,null,null,null,null,null,null,"Jesiere Carter - NF","NIAGARA FALLS",1,12,152,null,1,null,12,null,"CHASE LAWTON - So. Jefferson-Sandy Creek",null,null,null,12]
[null,"seedable wrestlers in this weight class.",null,null,null,null,3,null,null,"NO WINS OVER SEC 6 PLACERS",0,"NO WINS OVER STATE COMPETITION",0,null,null,null,null,null,null,null,null,null,null,null,null,"Max Hill - NF","NIAGARA FALLS",1,12,160,null,7,null,1,null,"CAL RUSSO - Spencerport",null,null,null,12]
[null,null,null,null,null,null,4,null,null,"NO WINS OVER SEC 6 PLACERS",0,null,null,null,null,null,null,null,null,null,null,null,null,null,null,"Chase Richards - NW","NIAGARA WHEATFIELD",1,8,102,null,4,null,6,null,"JAKE AINA - Spencerport",null,null,null,12]
[null,null,null,null,null,null,5,null,null,"NO WINS OVER SEC 6 PLACERS",0,null,null,null,null,null,null,null,null,null,null,null,null,null,null,"Tremell Mathews - NW","NIAGARA WHEATFIELD",1,11,126,null,1,null,12,null,"GEORGE OROUDJOV - Syosset",null,null,null,34]
[null,null,null,null,null,null,6,null,null,"NO WINS OVER SEC 6 PLACERS",0,null,null,null,null,null,null,null,null,null,null,null,null,null,null,"Joseph Cicco - NW","NIAGARA WHEATFIELD",1,10,132,null,5,null,4,null,"TORIN BISHOP -Tamarac",null,null,null,12]
[null,null,null,null,null,null,7,null,null,"NO WINS OVER SEC 6 PLACERS",0,null,null,null,null,null,null,null,null,null,null,null,null,null,null,"Te'Shaun Mathews - NW","NIAGARA WHEATFIELD",1,10,138,null,3,null,8,null,"GIANNI SILVESTRI - Tioga",null,null,null,40]
[null,null,null,null,"W","L",8,null,null,null,null,null,null,null,null,null,null,null,null,null,null,null,null,null,null,"Andre Clause - NW","NIAGARA WHEATFIELD",1,12,285,null,3,null,8,null,"CADEN BELLIS - Tioga",null,null,null,26]
[12,null,null,null,null,null,{"$f":"IFERROR(IF(AND((E102+F102)>0,(E102+F102)<10),ROUND(E102/SUM(E102+F102)*50,0),IF((E102+F102)<20,ROUND(E102/SUM(E102+F102)*75,0),IF((E102+F102)>19,ROUND(E102/SUM(E102+F102)*100,0)))),\"0\")","v":"0"},"Did Not Place",{"$f":"VLOOKUP(H102,$Q$4:$R$37,2,FALSE)","v":0},"NO WINS OVER SEC 6 PLACERS",{"$f":"VLOOKUP(J102,$Z$3:$AH$379,9,FALSE)","v":0},"NO WINS OVER STATE COMPETITION",{"$f":"VLOOKUP(L102,$AJ$3:$AN$245,5,FALSE)","v":0},0,0,{"$f":"SUM(G102,I102,K102,K103,K104,K105,K106,K107,K108,K109,M102,M103,M104,M105,N102,O102)","v":0},null,null,null,null,null,null,null,null,null,"Collin Coughenour - NW","NIAGARA WHEATFIELD",1,11,145,null,1,null,12,null,"MASON WELCH - Tioga",null,null,null,14]
[null,null,null,null,null,null,1,null,null,"NO WINS OVER SEC 6 PLACERS",0,"NO WINS OVER STATE COMPETITION",{"$f":"VLOOKUP(L103,$AJ$3:$AN$245,5,FALSE)","v":0},null,null,null,null,null,null,null,null,null,null,null,null,"Anthony Lang - NW","NIAGARA WHEATFIELD",1,10,152,null,7,null,1,null,"DONAVAN SMITH - Tioga",null,null,null,12]
[null,"List the names of head to head wins over",null,null,null,null,2,null,null,"NO WINS OVER SEC 6 PLACERS",0,"NO WINS OVER STATE COMPETITION",0,null,null,null,null,null,null,null,null,null,null,null,null,"Casey Robinson - NW","NIAGARA WHEATFIELD",1,11,215,null,7,null,1,null,"EMMETT WOOD - Tioga",null,null,null,16]
[null,"potential wrestlers in this weight class.",null,null,null,null,3,null,null,"NO WINS OVER SEC 6 PLACERS",0,"NO WINS OVER STATE COMPETITION",0,null,null,null,null,null,null,null,null,null,null,null,null,"Trevon Mathews - NW","NIAGARA WHEATFIELD",1,12,285,null,6,null,3,null,"JOSEPH CLEM - Wantagh",null,null,null,12]
[null,null,null,null,null,null,4,null,null,"NO WINS OVER SEC 6 PLACERS",0,null,null,null,null,null,null,null,null,null,null,null,null,null,null,"Dylan Gagnon - NT","NORTH TONAWANDA",1,10,126,null,8,null,1,null,"BEN ROGERS - Wantagh",null,null,null,18]
[null,null,null,null,null,null,5,null,null,"NO WINS OVER SEC 6 PLACERS",0,null,null,null,null,null,null,null,null,null,null,null,null,null,null,"Simon Griskonis - NT","NORTH TONAWANDA",1,12,160,null,5,null,4,null,"CHRISTIAN LIEVANO - Ward Melville",null,null,null,26]
[null,null,null,null,null,null,6,null,null,"NO WINS OVER SEC 6 PLACERS",0,null,null,null,null,null,null,null,null,null,null,null,null,null,null,"Joseph Pasiak - NT","NORTH TONAWANDA",1,12,172,null,8,null,1,null,"TANNER MCKENNA - Warrensburg-Bolton",null,null,null,12]
[null,null,null,null,null,null,7,null,null,"NO WINS OVER SEC 6 PLACERS",0,null,null,null,null,null,null,null,null,null,null,null,null,null,null,"Devin Kayes - OLEAN","OLEAN",2,12,285,null,8,null,1,null,"ALEX GRECO - Warwick Valley",null,null,null,14]
[null,null,null,null,"W","L",8,null,null,null,null,null,null,null,null,null,null,null,null,null,null,null,null,null,null,"Gavin Gocella - OP","ORCHARD PARK",1,12,145,null,8,null,1,null,"ANDREW MARCHESE - Washingtonville",null,null,null,22]
[13,null,null,null,null,null,{"$f":"IFERROR(IF(AND((E111+F111)>0,(E111+F111)<10),ROUND(E111/SUM(E111+F111)*50,0),IF((E111+F111)<20,ROUND(E111/SUM(E111+F111)*75,0),IF((E111+F111)>19,ROUND(E111/SUM(E111+F111)*100,0)))),\"0\")","v":"0"},"Did Not Place",{"$f":"VLOOKUP(H111,$Q$4:$R$37,2,FALSE)","v":0},"NO WINS OVER SEC 6 PLACERS",{"$f":"VLOOKUP(J111,$Z$3:$AH$379,9,FALSE)","v":0},"NO WINS OVER STATE COMPETITION",{"$f":"VLOOKUP(L111,$AJ$3:$AN$245,5,FALSE)","v":0},0,0,{"$f":"SUM(G111,I111,K111,K112,K113,K114,K115,K116,K117,K118,M111,M112,M113,M114,N111,O111)","v":0},null,null,null,null,null,null,null,null,null,"Jason Storms - OP","ORCHARD PARK",1,12,160,null,6,null,3,null,"JOE BERENSON - Webster Schroeder",null,null,null,12]
[null,null,null,null,null,null,1,null,null,"NO WINS OVER SEC 6 PLACERS",0,"NO WINS OVER STATE COMPETITION",{"$f":"VLOOKUP(L112,$AJ$3:$AN$245,5,FALSE)","v":0},null,null,null,null,null,null,null,null,null,null,null,null,"Jack MacDonald - OP","ORCHARD PARK",1,10,189,null,5,null,4,null,"GABE MONROE - Windsor",null,null,null,26]
[null,"Head to head wins over potentially",null,null,null,null,2,null,null,"NO WINS OVER SEC 6 PLACERS",0,"NO WINS OVER STATE COMPETITION",0,null,null,null,null,null,null,null,null,null,null,null,null,"Ben Ciesielski - OP","ORCHARD PARK",1,12,285,null,8,null,1]
[null,"seedable wrestlers in this weight class.",null,null,null,null,3,null,null,"NO WINS OVER SEC 6 PLACERS",0,"NO WINS OVER STATE COMPETITION",0,null,null,null,null,null,null,null,null,null,null,null,null,"Brady Heckathorn - PIO","PION",2,11,152,null,2,null,10]
[null,null,null,null,null,null,4,null,null,"NO WINS OVER SEC 6 PLACERS",0,null,null,null,null,null,null,null,null,null,null,null,null,null,null,"Daniel Kirsch - PION","PIONEER",2,12,118,null,1,null,26]
[null,null,null,null,null,null,5,null,null,"NO WINS OVER SEC 6 PLACERS",0,null,null,null,null,null,null,null,null,null,null,null,null,null,null,"Xander Kirsch - PION","PIONEER",2,11,126,null,5,null,4]
[null,null,null,null,null,null,6,null,null,"NO WINS OVER SEC 6 PLACERS",0,null,null,null,null,null,null,null,null,null,null,null,null,null,null,"Donald Bennett - PIO","PIONEER",2,12,160,null,3,null,8]
[null,null,null,null,null,null,7,null,null,"NO WINS OVER SEC 6 PLACERS",0,null,null,null,null,null,null,null,null,null,null,null,null,null,null,"Dakota Mascho - PORT","PORTVILLE",2,12,160,null,1,null,22]
[null,null,null,null,"W","L",8,null,null,null,null,null,null,null,null,null,null,null,null,null,null,null,null,null,null,"Dominick Clark - RAND","RANDOLPH",2,9,118,null,7,null,1,null,"TYLER RICE","NORWICH",null,12,12]
[14,null,null,null,null,null,{"$f":"IFERROR(IF((E120+F120)>4,ROUND(E120/SUM(E120:F120)*100,0),ROUND(E120/SUM(E120:F120)*50,0)),\"0\")","v":"0"},"Did Not Place",{"$f":"VLOOKUP(H120,$Q$4:$R$334,2,FALSE)","v":0},"NO WINS OVER SEC 6 PLACERS",{"$f":"VLOOKUP(J120,$Z$3:$AH$379,9,FALSE)","v":0},"NO WINS OVER STATE COMPETITION",{"$f":"VLOOKUP(L120,$AJ$3:$AN$245,5,FALSE)","v":0},0,null,{"$f":"SUM(G120,I120,K120,K121,K122,K123,K124,K125,K126,K127,M120,M121,M122,M123,N120)","v":0},null,null,null,null,null,null,null,null,null,"Caden Inkley - RAND","RANDOLPH",2,9,118,null,8,null,1,null,"ISAIAH TRAGO","MOUNT MARKHAM",null,12,12]
[null,null,null,null,null,null,1,null,null,"NO WINS OVER SEC 6 PLACERS",0,"NO WINS OVER STATE COMPETITION",{"$f":"VLOOKUP(L121,$AJ$3:$AN$245,5,FALSE)","v":0},null,null,null,null,null,null,null,null,null,null,null,null,"Joe Nottingham - RAND","RANDOLPH",2,11,132,null,6,null,3,null,"MICAH ROES - LOWVILLE",null,null,null,30]
[null,"Head to head wins over potentially",null,null,null,null,2,null,null,"NO WINS OVER SEC 6 PLACERS",0,"NO WINS OVER STATE COMPETITION",0,null,null,null,null,null,null,null,null,null,null,null,null,"Joe Jopp - ROY","ROY HART",2,9,102,null,8,null,1,null,"MARIO FIDANZA - LYNDONVILLE",null,null,null,12]
[null,"seedable wrestlers in this weight class.",null,null,null,null,3,null,null,"NO WINS OVER SEC 6 PLACERS",0,"NO WINS OVER STATE COMPETITION",0,null,null,null,null,null,null,null,null,null,null,null,null,"Brett Ricker - ROY","ROY HART ",2,12,160,null,4,null,6,null,"KILLIAN FOY - MACARTHUR",null,null,null,30]
[null,null,null,null,null,null,4,null,null,"NO WINS OVER SEC 6 PLACERS",0,null,null,null,null,null,null,null,null,null,null,null,null,null,null,"Zack Hill - ROY","ROY HART ",2,12,189,null,5,null,4,null,"JAKE SCHNEIDER - MACARTHUR",null,null,null,12]
[null,null,null,null,null,null,5,null,null,"NO WINS OVER SEC 6 PLACERS",0,null,null,null,null,null,null,null,null,null,null,null,null,null,null,"Konner Spring - SAL","SALAMANCA",2,11,132,null,4,null,6,null,"ANGELO CENTRONE - MAHOPAC",null,null,null,18]
[null,null,null,null,null,null,6,null,null,"NO WINS OVER SEC 6 PLACERS",0,null,null,null,null,null,null,null,null,null,null,null,null,null,null,"Carmine Calimeri - SOUTH","SOUTHWESTERN",2,8,102,null,4,null,6,null,"LUCAS MARTIN - MALONE",null,null,null,12]
[null,null,null,null,null,null,7,null,null,"NO WINS OVER SEC 6 PLACERS",0,null,null,null,null,null,null,null,null,null,null,null,null,null,null,"Aiden Morris - SPRING","SPRINGVILLE",2,9,110,null,5,null,4,null,"ALFRED MACNEILL - MALONE",null,null,null,12]
[null,null,null,null,"W","L",8,null,null,null,null,null,null,null,null,null,null,null,null,null,null,null,null,null,null,"Nick Brown - SPRING","SPRINGVILLE",2,12,160,null,2,null,10,null,"JOEY RODAS - MAMARONECK",null,null,null,12]
[15,null,null,null,null,null,{"$f":"IFERROR(IF((E129+F129)>4,ROUND(E129/SUM(E129:F129)*100,0),ROUND(E129/SUM(E129:F129)*50,0)),\"0\")","v":"0"},"Did Not Place",{"$f":"VLOOKUP(H129,$Q$4:$R$334,2,FALSE)","v":0},"NO WINS OVER SEC 6 PLACERS",{"$f":"VLOOKUP(J129,$Z$3:$AH$379,9,FALSE)","v":0},"NO WINS OVER STATE COMPETITION",{"$f":"VLOOKUP(L129,$AJ$3:$AN$245,5,FALSE)","v":0},0,null,{"$f":"SUM(G129,I129,K129,K130,K131,K132,K133,K134,K135,K136,M129,M130,M131,M132,N129)","v":0},null,null,null,null,null,null,null,null,null,"James Leuer Jr. - STAR","STARPOINT",1,11,102,null,2,null,10,null,"CALEB SVINGALA - MAPLE HILL",null,null,null,30]
[null,null,null,null,null,null,1,null,null,"NO WINS OVER SEC 6 PLACERS",0,"NO WINS OVER STATE COMPETITION",{"$f":"VLOOKUP(L130,$AJ$3:$AN$245,5,FALSE)","v":0},null,null,null,null,null,null,null,null,null,null,null,null,"Zachary Caldwell - STAR","STARPOINT",1,8,110,null,4,null,6,null,"JUSTIN SMITH - MARCUS WHITMAN",null,null,null,12]
[null,"Head to head wins over potentially",null,null,null,null,2,null,null,"NO WINS OVER SEC 6 PLACERS",0,"NO WINS OVER STATE COMPETITION",0,null,null,null,null,null,null,null,null,null,null,null,null,"Griffin LaPlante - STAR","STARPOINT",1,8,126,null,2,null,10,null,"ANTHONY CONETTA - MASSAPEQUA",null,null,null,26]
[null,"seedable wrestlers in this weight class.",null,null,null,null,3,null,null,"NO WINS OVER SEC 6 PLACERS",0,"NO WINS OVER STATE COMPETITION",0,null,null,null,null,null,null,null,null,null,null,null,null,"Gage LaPlante - STAR","STARPOINT",1,10,132,null,2,null,10,null,"CHASE LIARDI - MASSAPEQUA",null,null,null,22]
[null,null,null,null,null,null,4,null,null,"NO WINS OVER SEC 6 PLACERS",0,null,null,null,null,null,null,null,null,null,null,null,null,null,null,"Christopher Uptegrove - STAR","STARPOINT",1,11,132,null,3,null,8,null,"JEREMY SCUTELLARO - MASSAPEQUA",null,null,null,12]
[null,null,null,null,null,null,5,null,null,"NO WINS OVER SEC 6 PLACERS",0,null,null,null,null,null,null,null,null,null,null,null,null,null,null,"Peyton Lyness - STAR","STARPOINT",1,12,145,null,6,null,3,null,"MASON PHILLIPS - MASSENA",null,null,null,12]
[null,null,null,null,null,null,6,null,null,"NO WINS OVER SEC 6 PLACERS",0,null,null,null,null,null,null,null,null,null,null,null,null,null,null,"Thomas Browne - STAR","STARPOINT",1,12,172,null,6,null,3,null,"COLDEN HARDY - MASSENA",null,null,null,12]
[null,null,null,null,null,null,7,null,null,"NO WINS OVER SEC 6 PLACERS",0,null,null,null,null,null,null,null,null,null,null,null,null,null,null,"Landon Grainy -STAR","STARPOINT",1,11,172,null,7,null,1,null,"PRESTON GUYNUP - MASSENA",null,null,null,12]
[null,null,null,null,null,null,8,null,null,null,null,null,null,null,null,null,null,null,null,null,null,null,null,null,null,"Matt Caldwell - STAR","STARPOINT",1,11,215,null,4,null,6,null,"ETHAN SCHMIDT - MATTITUCK",null,null,null,12]
[null,null,null,null,null,null,null,null,null,null,null,null,null,null,null,null,null,null,null,null,null,null,null,null,null,"Zach Dellinger - WILL NE","WILLIAMSVILLE N/E",1,12,118,null,5,null,4]
[null,null,null,null,"Bottom of form",null,null,null,null,null,null,null,null,null,null,null,null,null,null,null,null,null,null,null,null,"Cameron Catrabone - WILL NE","WILLIAMSVILLE NE",1,10,132,null,1,null,18]
[null,null,null,null,null,null,null,null,null,null,null,null,null,null,null,null,null,null,null,null,null,null,null,null,null,"Matthew McKenna - WILL NE","WILLIAMSVILLE NE",1,10,215,null,6,null,3,null,null,null,null,null,null,null," "]
[null,null,null,null,null,null,null,null,null,null,null,null,null,null,null,null,null,null,null,null,null,null,null,null,null,"Treyden Saxer - WILL SO","WILLIAMSVILLE SOUTH",1,10,138,null,7,null,1]
[null,null,null,null,null,null,null,null,null,null,null,null,null,null,null,null,null,null,null,null,null,null,null,null,null,"Brad Evelt - WILL SO","WILLIAMSVILLE SOUTH",1,12,152,null,5,null,4]
[null,null,null,null,null,null,null,null,null,null,null,null,null,null,null,null,null,null,null,null,null,null,null,null,null,"Matt Caldwell - STAR","STARPOINT",1,11,215,null,4,null,6]
[null,null,null,null,null,null,null,null,null,null,null,null,null,null,null,null,null,null,null,null,null,null,null,null,null,"Zach Dellinger - WILL NE","WILLIAMSVILLE N/E",1,12,118,null,5,null,4]
[null,null,null,null,null,null,null,null,null,null,null,null,null,null,null,null,null,null,null,null,null,null,null,null,null,"Cameron Catrabone - WILL NE","WILLIAMSVILLE NE",1,10,132,null,1,null,12]
[null,null,null,null,null,null,null,null,null,null,null,null,null,null,null,null,null,null,null,null,null,null,null,null,null,"Matthew McKenna - WILL NE","WILLIAMSVILLE NE",1,10,215,null,6,null,3]
[null,null,null,null,null,null,null,null,null,null,null,null,null,null,null,null,null,null,null,null,null,null,null,null,null,"Treyden Saxer - WILL SO","WILLIAMSVILLE SOUTH",1,10,138,null,7,null,1,null,null,null,null,null,null,null," "]
[null,null,null,null,null,null,null,null,null,null,null,null,null,null,null,null,null,null,null,null,null,null,null,null,null,"Brad Evelt - WILL SO","WILLIAMSVILLE SOUTH",1,12,152,null,5,null,4]
[null,null,null,null,null,null,null,null,null,null,null,null,null,null,null,null,null,null,null,null,null,null,null,null,null,"Carson Alberti - W.Sen W/W","WEST SENENCA WEST / EAST",1,12,120,null,1,null,22]
[]
[]
[]
[]
[]
[]
[]
[]
[]
[]
[]
[]
[]
[]
[]
[]
[]
[]
[]
[]
[]
[]
[]
[]
[]
[]
[]
[]
[]
[]
[]
[]
[]
[]
[]
[]
[]
[]
[]
[]
[]
[]
[]
[]
[]
[]
[]
[]
[]
[]
[]
[]
[]
[]
[]
[]
[]
[]
[]
[]
[]
[]
[]
[]
[]
[]
[]
[]
[]
[]
[]
[]
[]
[]
[]
[]
[]
[]
[]
[]
[]
[]
[]
[]
[]
[]
[]
[]
[]
[]
[]
[]
[]
[]
[]
[]
[]
[]
[]
[]
[]
[]
[]
[]
[]
[]
[]
[]
[]
[]
[]
[]
[]
[]
[]
[]
[]
[]
[]
[]
[]
[]
[]
[]
[]
[]
[]
[]
[]
[]
[]
[]
[]
[]
[]
[]
[]
[]
[]
[]
[]
[]
[]
[]
[]
[]
[]
[]
[]
[]
[]
[]
[]
[]
[]
[]
[]
[]
[]
[]
[]
[]
[]
[]
[]
[]
[]
[]
[]
[]
[]
[]
[]
[]
[]
[]
[]
[]
[]
[]
[]
[]
[]
[]
[]
[]
[]
[]
[]
[]
[]
[]
[]
[]
[]
[]
[]
[]
[]
[]
[]
[]
[]
[]
[]
[]
[]
[]
[]
[]
[]
[]
[]
[]
[]
[]
[]
[]
[]
[]
[]
[]
[]
[]
[]
[]
[]
[]
[]
[]
[null,null,null,null,null,null,null,null,null,null,null,null,null,null,null,null,null,null,null,null,null,null,null,null,null,null,null,null,null,null,null,null,null,0]
[null,null,null,null,null,null,null,null,null,null,null,null,null,null,null,null,null,null,null,null,null,null,null,null,null,null,null,null,null,null,null,null,null,0]
[null,null,null,null,null,null,null,null,null,null,null,null,null,null,null,null,null,null,null,null,null,null,null,null,null,null,null,null,null,null,null,null,null,0]
[null,null,null,null,null,null,null,null,null,null,null,null,null,null,null,null,null,null,null,null,null,null,null,null,null,null,null,null,null,null,null,null,null,0]
[null,null,null,null,null,null,null,null,null,null,null,null,null,null,null,null,null,null,null,null,null,null,null,null,null,null,null,null,null,null,null,null,null,0]
[null,null,null,null,null,null,null,null,null,null,null,null,null,null,null,null,null,null,null,null,null,null,null,null,null,null,null,null,null,null,null,null,null,0]
[null,null,null,null,null,null,null,null,null,null,null,null,null,null,null,null,null,null,null,null,null,null,null,null,null,null,null,null,null,null,null,null,null,0]
[null,null,null,null,null,null,null,null,null,null,null,null,null,null,null,null,null,null,null,null,null,null,null,null,null,null,null,null,null,null,null,null,null,0]
[null,null,null,null,null,null,null,null,null,null,null,null,null,null,null,null,null,null,null,null,null,null,null,null,null,null,null,null,null,null,null,null,null,0]
[null,null,null,null,null,null,null,null,null,null,null,null,null,null,null,null,null,null,null,null,null,null,null,null,null,null,null,null,null,null,null,null,null,0]
[null,null,null,null,null,null,null,null,null,null,null,null,null,null,null,null,null,null,null,null,null,null,null,null,null,null,null,null,null,null,null,null,null,0]
[null,null,null,null,null,null,null,null,null,null,null,null,null,null,null,null,null,null,null,null,null,null,null,null,null,null,null,null,null,null,null,null,null,0]
[null,null,null,null,null,null,null,null,null,null,null,null,null,null,null,null,null,null,null,null,null,null,null,null,null,null,null,null,null,null,null,null,null,0]
[null,null,null,null,null,null,null,null,null,null,null,null,null,null,null,null,null,null,null,null,null,null,null,null,null,null,null,null,null,null,null,null,null,0]
[null,null,null,null,null,null,null,null,null,null,null,null,null,null,null,null,null,null,null,null,null,null,null,null,null,null,null,null,null,null,null,null,null,0]
[null,null,null,null,null,null,null,null,null,null,null,null,null,null,null,null,null,null,null,null,null,null,null,null,null,null,null,null,null,null,null,null,null,0]
[null,null,null,null,null,null,null,null,null,null,null,null,null,null,null,null,null,null,null,null,null,null,null,null,null,null,null,null,null,null,null,null,null,0]
[null,null,null,null,null,null,null,null,null,null,null,null,null,null,null,null,null,null,null,null,null,null,null,null,null,null,null,null,null,null,null,null,null,0]
[null,null,null,null,null,null,null,null,null,null,null,null,null,null,null,null,null,null,null,null,null,null,null,null,null,null,null,null,null,null,null,null,null,0]
[null,null,null,null,null,null,null,null,null,null,null,null,null,null,null,null,null,null,null,null,null,null,null,null,null,null,null,null,null,null,null,null,null,0]
[null,null,null,null,null,null,null,null,null,null,null,null,null,null,null,null,null,null,null,null,null,null,null,null,null,null,null,null,null,null,null,null,null,0]
[null,null,null,null,null,null,null,null,null,null,null,null,null,null,null,null,null,null,null,null,null,null,null,null,null,null,null,null,null,null,null,null,null,0]
[null,null,null,null,null,null,null,null,null,null,null,null,null,null,null,null,null,null,null,null,null,null,null,null,null,null,null,null,null,null,null,null,null,0]
[null,null,null,null,null,null,null,null,null,null,null,null,null,null,null,null,null,null,null,null,null,null,null,null,null,null,null,null,null,null,null,null,null,0]
[null,null,null,null,null,null,null,null,null,null,null,null,null,null,null,null,null,null,null,null,null,null,null,null,null,null,null,null,null,null,null,null,null,0]
[null,null,null,null,null,null,null,null,null,null,null,null,null,null,null,null,null,null,null,null,null,null,null,null,null,null,null,null,null,null,null,null,null,0]
[null,null,null,null,null,null,null,null,null,null,null,null,null,null,null,null,null,null,null,null,null,null,null,null,null,null,null,null,null,null,null,null,null,0]
[null,null,null,null,null,null,null,null,null,null,null,null,null,null,null,null,null,null,null,null,null,null,null,null,null,null,null,null,null,null,null,null,null,0]
[null,null,null,null,null,null,null,null,null,null,null,null,null,null,null,null,null,null,null,null,null,null,null,null,null,null,null,null,null,null,null,null,null,0]
[null,null,null,null,null,null,null,null,null,null,null,null,null,null,null,null,null,null,null,null,null,null,null,null,null,null,null,null,null,null,null,null,null,0]
[null,null,null,null,null,null,null,null,null,null,null,null,null,null,null,null,null,null,null,null,null,null,null,null,null,null,null,null,null,null,null,null,null,0]
[null,null,null,null,null,null,null,null,null,null,null,null,null,null,null,null,null,null,null,null,null,null,null,null,null,null,null,null,null,null,null,null,null,0]
[null,null,null,null,null,null,null,null,null,null,null,null,null,null,null,null,null,null,null,null,null,null,null,null,null,null,null,null,null,null,null,null,null,0]
[null,null,null,null,null,null,null,null,null,null,null,null,null,null,null,null,null,null,null,null,null,null,null,null,null,null,null,null,null,null,null,null,null,0]
[null,null,null,null,null,null,null,null,null,null,null,null,null,null,null,null,null,null,null,null,null,null,null,null,null,null,null,null,null,null,null,null,null,0]
[null,null,null,null,null,null,null,null,null,null,null,null,null,null,null,null,null,null,null,null,null,null,null,null,null,null,null,null,null,null,null,null,null,0]
[null,null,null,null,null,null,null,null,null,null,null,null,null,null,null,null,null,null,null,null,null,null,null,null,null,null,null,null,null,null,null,null,null,0]
[null,null,null,null,null,null,null,null,null,null,null,null,null,null,null,null,null,null,null,null,null,null,null,null,null,null,null,null,null,null,null,null,null,0]
[null,null,null,null,null,null,null,null,null,null,null,null,null,null,null,null,null,null,null,null,null,null,null,null,null,null,null,null,null,null,null,null,null,0]
[null,null,null,null,null,null,null,null,null,null,null,null,null,null,null,null,null,null,null,null,null,null,null,null,null,null,null,null,null,null,null,null,null,0]
[null,null,null,null,null,null,null,null,null,null,null,null,null,null,null,null,null,null,null,null,null,null,null,null,null,null,null,null,null,null,null,null,null,0]
[null,null,null,null,null,null,null,null,null,null,null,null,null,null,null,null,null,null,null,null,null,null,null,null,null,null,null,null,null,null,null,null,null,0]
[null,null,null,null,null,null,null,null,null,null,null,null,null,null,null,null,null,null,null,null,null,null,null,null,null,null,null,null,null,null,null,null,null,0]
[null,null,null,null,null,null,null,null,null,null,null,null,null,null,null,null,null,null,null,null,null,null,null,null,null,null,null,null,null,null,null,null,null,0]
[null,null,null,null,null,null,null,null,null,null,null,null,null,null,null,null,null,null,null,null,null,null,null,null,null,null,null,null,null,null,null,null,null,0]
[null,null,null,null,null,null,null,null,null,null,null,null,null,null,null,null,null,null,null,null,null,null,null,null,null,null,null,null,null,null,null,null,null,0]
[null,null,null,null,null,null,null,null,null,null,null,null,null,null,null,null,null,null,null,null,null,null,null,null,null,null,null,null,null,null,null,null,null,0]
[null,null,null,null,null,null,null,null,null,null,null,null,null,null,null,null,null,null,null,null,null,null,null,null,null,null,null,null,null,null,null,null,null,0]
[null,null,null,null,null,null,null,null,null,null,null,null,null,null,null,null,null,null,null,null,null,null,null,null,null,null,null,null,null,null,null,null,null,0]
[null,null,null,null,null,null,null,null,null,null,null,null,null,null,null,null,null,null,null,null,null,null,null,null,null,null,null,null,null,null,null,null,null,0]
[null,null,null,null,null,null,null,null,null,null,null,null,null,null,null,null,null,null,null,null,null,null,null,null,null,null,null,null,null,null,null,null,null,0]
[null,null,null,null,null,null,null,null,null,null,null,null,null,null,null,null,null,null,null,null,null,null,null,null,null,null,null,null,null,null,null,null,null,0]
[null,null,null,null,null,null,null,null,null,null,null,null,null,null,null,null,null,null,null,null,null,null,null,null,null,null,null,null,null,null,null,null,null,0]
[null,null,null,null,null,null,null,null,null,null,null,null,null,null,null,null,null,null,null,null,null,null,null,null,null,null,null,null,null,null,null,null,null,0]
[null,null,null,null,null,null,null,null,null,null,null,null,null,null,null,null,null,null,null,null,null,null,null,null,null,null,null,null,null,null,null,null,null,0]
[null,null,null,null,null,null,null,null,null,null,null,null,null,null,null,null,null,null,null,null,null,null,null,null,null,null,null,null,null,null,null,null,null,0]
[null,null,null,null,null,null,null,null,null,null,null,null,null,null,null,null,null,null,null,null,null,null,null,null,null,null,null,null,null,null,null,null,null,0]
[null,null,null,null,null,null,null,null,null,null,null,null,null,null,null,null,null,null,null,null,null,null,null,null,null,null,null,null,null,null,null,null,null,0]
[null,null,null,null,null,null,null,null,null,null,null,null,null,null,null,null,null,null,null,null,null,null,null,null,null,null,null,null,null,null,null,null,null,0]
[null,null,null,null,null,null,null,null,null,null,null,null,null,null,null,null,null,null,null,null,null,null,null,null,null,null,null,null,null,null,null,null,null,0]
[null,null,null,null,null,null,null,null,null,null,null,null,null,null,null,null,null,null,null,null,null,null,null,null,null,null,null,null,null,null,null,null,null,0]
[null,null,null,null,null,null,null,null,null,null,null,null,null,null,null,null,null,null,null,null,null,null,null,null,null,null,null,null,null,null,null,null,null,0]
[null,null,null,null,null,null,null,null,null,null,null,null,null,null,null,null,null,null,null,null,null,null,null,null,null,null,null,null,null,null,null,null,null,0]
[null,null,null,null,null,null,null,null,null,null,null,null,null,null,null,null,null,null,null,null,null,null,null,null,null,null,null,null,null,null,null,null,null,0]
[null,null,null,null,null,null,null,null,null,null,null,null,null,null,null,null,null,null,null,null,null,null,null,null,null,null,null,null,null,null,null,null,null,0]
[null,null,null,null,null,null,null,null,null,null,null,null,null,null,null,null,null,null,null,null,null,null,null,null,null,null,null,null,null,null,null,null,null,0]
[null,null,null,null,null,null,null,null,null,null,null,null,null,null,null,null,null,null,null,null,null,null,null,null,null,null,null,null,null,null,null,null,null,0]
[null,null,null,null,null,null,null,null,null,null,null,null,null,null,null,null,null,null,null,null,null,null,null,null,null,null,null,null,null,null,null,null,null,0]
[null,null,null,null,null,null,null,null,null,null,null,null,null,null,null,null,null,null,null,null,null,null,null,null,null,null,null,null,null,null,null,null,null,0]
[null,null,null,null,null,null,null,null,null,null,null,null,null,null,null,null,null,null,null,null,null,null,null,null,null,null,null,null,null,null,null,null,null,0]
[null,null,null,null,null,null,null,null,null,null,null,null,null,null,null,null,null,null,null,null,null,null,null,null,null,null,null,null,null,null,null,null,null,0]
[null,null,null,null,null,null,null,null,null,null,null,null,null,null,null,null,null,null,null,null,null,null,null,null,null,null,null,null,null,null,null,null,null,0]
[null,null,null,null,null,null,null,null,null,null,null,null,null,null,null,null,null,null,null,null,null,null,null,null,null,null,null,null,null,null,null,null,null,0]
[null,null,null,null,null,null,null,null,null,null,null,null,null,null,null,null,null,null,null,null,null,null,null,null,null,null,null,null,null,null,null,null,null,0]
[null,null,null,null,null,null,null,null,null,null,null,null,null,null,null,null,null,null,null,null,null,null,null,null,null,null,null,null,null,null,null,null,null,0]
[null,null,null,null,null,null,null,null,null,null,null,null,null,null,null,null,null,null,null,null,null,null,null,null,null,null,null,null,null,null,null,null,null,0]
[null,null,null,null,null,null,null,null,null,null,null,null,null,null,null,null,null,null,null,null,null,null,null,null,null,null,null,null,null,null,null,null,null,0]
[null,null,null,null,null,null,null,null,null,null,null,null,null,null,null,null,null,null,null,null,null,null,null,null,null,null,null,null,null,null,null,null,null,0]
[null,null,null,null,null,null,null,null,null,null,null,null,null,null,null,null,null,null,null,null,null,null,null,null,null,null,null,null,null,null,null,null,null,0]

{"sheet":"NYS Place finishers","index":1,"n_rows":239,"n_cols":7,"rows_kept":239,"cut":false,"hidden":true,"merged":[]}
["DIVISION ","WT","FIRST NAME  LAST NAME","SCHOOL","GRADE IN 2013-14","state place 2013-14","COMPETION POINTS"]
[null,null,"NO WINS OVER STATE COMPETITION"]
[2,113,"ADIRONDACK - DEREK SPANN","ADIRONDACK",10,2,30]
[2,113,"ADIRONDACK - RYAN O'ROURKE","ADIRONDACK",10,5,18]
[2,99,"AKRON - JOHNNY FIEBELKORN ","AKRON",8,null,12]
[2,99,"ALEXANDER - DANE HEBERLEIN","ALEXANDER",9,1,38]
[2,126,"AMHERST - KELLEN DEVLIN ","AMHERST",10,1,38]
[2,99,"ARDSLEY - EVAN SHLOM","ARDSLEY",11,null,12]
[2,126,"AUSABLE VALLEY - DYLAN BAKER","AUSABLE VALLEY",10,null,12]
[2,195,"AUSABLE VALLEY - KENNY RIVERS ","AUSABLE VALLEY",11,null,12]
[2,120,"BABYLON - DOM MAZZELLA","BABYLON",11,null,12]
[2,285,"BABYLON - BRETT FROLE","BABYLON",10,null,12]
[2,113,"BENJAMIN CARDOZO - STEVEN KIM","BENJAMIN CARDOZO",11,null,12]
[2,120,"BETHPAGE - JAKE EINBINDER","BETHPAGE",11,6,14]
[1,145,"BGAH - CHRIS CIRIGILIANO","BGAH",10,null,12]
[1,138,"BURNT HILLS - CHRISTIAN GRAMUGLIA","BURNT HILLS",9,null,12]
[2,106,"BURNT HILLS - JAKE ASHCRAFT","BURNT HILLS",11,null,12]
[1,99,"BYRAM HILLS - JON ERRICO","BYRAM HILLS",11,4,22]
[1,170,"BYRON BERGEN - DANNY KHOMITCH","BYRON BERGEN",11,null,12]
[1,120,"CAMDEN - GARRETT MITCHELL","CAMDEN",11,null,12]
[2,160,"CANASTOTA - NATE WALKER","CANASTOTA",11,null,12]
[2,138,"CANTON - RYAN BROWN","CANTON",10,null,12]
[2,138,"CANTON - CHAZ AGEN","CANTON",10,null,12]
[1,106,"CANTON - ALAN CLEMENT","CANTON",11,null,12]
[1,120,"CARLE PLACE - JOHN DERIDDER","CARLE PLACE",8,null,12]
[1,182,"CARTHAGE - ANDREW MCFARLAND","CARTHAGE",10,null,12]
[2,106,"CENTRAL SQUARE - BLAKE ENGEBRETSEN","CENTRAL SQUARE",11,null,12]
[1,113,"CENTRAL VALLEY ACAD - CJ WALTZ","CENTRAL VALLEY ACADEMY",9,null,12]
[1,145,"CENTRAL VALLEY ACAD - TANNER COOK","CENTRAL VALLEY ACADEMY",9,4,22]
[2,99,"CHENANGO FORKS - ALLAN MICHAEL RIOS","CHENANGO FORKS",11,null,12]
[2,106,"CICERO N. SYRACUSE - JOE BARBER","CICERO NORTH SYRACUSE",11,null,12]
[1,99,"CLARENCE - DYLAN ARENA","CLARENCE",10,null,12]
[1,160,"CLARENCE - NATE SCHWAB ","CLARENCE",11,null,12]
[1,113,"CLARENCE - RYAN BURNS","CLARENCE",11,null,12]
[1,220,"COLONIE - ISAIAH COOKS","COLONIE",11,null,12]
[1,106,"COLUMBIA - JOHN DEVINE","COLUMBIA",9,null,12]
[1,160,"COMMACK - MIKE D'ANGELO","COMMACK",11,3,26]
[1,99,"CORNWALL - QUINN ZSIDO","CORNWALL",11,6,14]
[1,113,"CORNWALL - ERIK JESSELL","CORNWALL",11,6,14]
[1,182,"CURTIS - MALIK GRANT","CURTIS",11,null,12]
[1,106,"DEER PARK - TOMMY COX","DEER PARK",10,null,12]
[1,126,"DEER PARK - DAVIS HAMIL","DEER PARK",11,5,18]
[1,170,"DEPOSIT-HANCOCK - DEAN RAYMOND","DEPOSIT-HANCOCK",10,3,26]
[1,195,"DOLGEVILLE - TRISTAN ENGLE","DOLGEVILLE",11,3,26]
[1,106,"DUANESBURG - ZACHERY LAWRENCE","DUANESBURG",7,5,18]
[1,99,"DUANESBURG - CONNOR LAWRENCE","DUANESBURG",11,2,30]
[2,106,"DUNKIRK - HECTOR COLOM ","DUNKIRK",8,5,18]
[2,113," DUNKIRK - TITO COLOM ","DUNKIRK",10,4,22]
[1,182,"EAGLE ACADEMY - VANCE CUFFE","EAGLE ACADEMY",10,null,12]
[2,99,"EAGLE ACADEMY - NATHANAEL ROSE","EAGLE ACADEMY",11,1,38]
[2,170,"EAGLE ACADEMY - MIGUEL PEREZ","EAGLE ACADEMY",11,5,18]
[2,220,"EAST AURORA - TYLER HALL ","EAST AURORA",11,null,12]
[2,99,"EAST ISLIP - JESSE DELLAVECCHIA","EAST ISLIP",11,2,30]
[2,160,"EAST ROCHESTER - HUNTER O'LENA","EAST ROCHESTER",10,null,12]
[2,106,"EAST ROCHESTER - KAYDON NEWTON","EAST ROCHESTER",11,null,12]
[2,113,"EASTPORT - ADAM BUSIELLO","EASTPORT",7,2,30]
[2,160,"EDGEMONT - KYLE ASLANIAN ","EDGEMONT",10,6,14]
[2,195,"EDGEMONT - CLIFTON WANG","EDGEMONT",9,null,12]
[2,220,"ELDRED FALLS LIB - KEVIN MORGANS","ELDRED FALLS LIBERTY",10,null,12]
[2,220,"FAIRPORT - ANTHONY BELL","FAIRPORT",11,null,12]
[1,120,"FAYETTEVILLE-MAN - TRISTAN BRODDUS","FAYETTEVILLE MANLIUS",11,null,12]
[2,106,"FORDHAM PREP - ADAM SANTORO","FORDHAM PREP",10,null,12]
[2,138,"FREDONIA - DAKOTA GARDNER","FREDONIA",10,4,22]
[2,138,"FULTON - MITCHELL WOODWORTH","FULTON",11,5,18]
[1,99,"FULTON - TRAVIS RACE","FULTON",9,null,12]
[2,106,"GALWAY - STEVEN CULBERT","GALWAY",11,null,12]
[2,138,"GATES-CHILI - DEREK ST JAMES","GATES CHILI",10,null,12]
[2,182,"GOUVERNEUR - DANIEL MULLIN","GOUVERNEUR",10,null,12]
[1,152,"GOUVERNEUR - JOEY BUSH","GOUVERNEUR",10,null,12]
[1,145,"GOUVERNEUR - AARON BUSH","GOUVERNEUR",11,null,12]
[1,132,"GOUVERNEUR - JUSTIN GARRISON","GOUVERNEUR",11,null,12]
[2,138,"GOUVERNEUR - AARON MCEATHRON","GOUVERNEUR",11,null,12]
[1,120,"GOUVERNEUR - JACOB BECKWITH","GOUVERNEUR",10,null,12]
[1,160,"GRAND STREET - SHANE LEGUILLOW","GRAND STREET CAMPUS",11,null,12]
[2,145,"GREENE - CHRISTIAN DIETRICH","GREENE",10,1,38]
[1,99,"HADLEY LUZERNE - JASON HOFFMAN","HADLEY LUZERNE/LAKE GEORGE",9,4,22]
[2,120,"HAUPPAGE - CHRIS MAURIELLO","HAUPPAUGE",10,1,38]
[2,126,"HEWLETT - OWEN BACHELDER ","HEWLETT",10,null,12]
[2,132,"HIGHLAND - MIKE FELICIANO","HIGHLAND",11,null,12]
[2,182,"HIGHLAND - ANDREW SULEIMAN","HIGHLAND",11,null,12]
[2,195,"HIGHLAND - THEODORE MAPES","HIGHLAND",11,null,12]
[2,220,"HILTON - YIANNI DIAKOMIHALIS","HILTON",9,1,38]
[1,113,"HILTON - LOUIE DEPREZ","HILTON",9,4,22]
[2,182,"HOLLAND PATENT - HUNTER RICHARD","HOLLAND PATENT",9,3,26]
[2,145,"HOLLAND PATENT - ALEX HERRINGSHAW","HOLLAND PATENT",10,1,38]
[1,132,"HOOSICK FALLS - NOLAN FOSTER","HOOSICK FALLS",10,null,12]
[1,132,"HUDSON FALLS - GENO BRANCATI","HUDSON FALLS",11,6,14]
[2,106,"HUNTINGTON - JOHN ARCERI","HUNTINGTON",10,null,12]
[2,132,"INDIAN RIVER - NICHOLAS TOUTANT","INDIAN RIVER",11,null,12]
[2,170,"INDIAN RIVER - SONNY MCPHERSON","INDIAN RIVER",10,null,12]
[1,120,"IROQUOIS - TRISTAN ALMETER ","IROQUOIS",10,null,12]
[1,106,"ISLIP - BRAD WADE ","ISLIP",11,3,26]
[1,138,"ITHACA - RICHIE BURKE ","ITHACA",11,4,22]
[1,152,"JAMESTOWN - DYLAN LUNDMARK ","JAMESTOWN",11,null,12]
[2,126,"JOHN GLENN - MATT PORELLO","JOHN GLENN",11,null,12]
[2,145,"JOHN GLENN - EDWIN RUBIO","JOHN GLENN",10,null,12]
[2,113,"JOHN JAY EAST - JAY ALBIS","JOHN JAY EAST FISHKILL",11,4,22]
[2,170,"JOHNSON CITY - ISAIAH COLGAN","JOHNSON CITY",10,null,12]
[1,113,"KELLENBERRG - JASON JAVIER","KELLENBERG MEMORIAL",10,null,12]
[1,113,"KENMORE WEST - ANTHONY ARGENTIERI ","KENMORE WEST",10,null,12]
[1,126,"LAWRENCE - HAMZA RAMZA","LAWRENCE",11,null,12]
[1,170,"LEVITTOWN - RICKY STAMM","LEVITTOWN DIVISION",10,null,12]
[2,145,"LEWISTON PORTER - ANDREW SHOMERS","LEWISTON PORTER",11,2,30]
[1,126,"LOKCPORT - ANTHONY OREFICE ","LOCKPORT",11,null,12]
[1,145,"LOCKPORT - KIRK FEENEY ","LOCKPORT",11,null,12]
[1,120,"LOCUST VALLEY - JONATHAN GOMEZ","LOCUST VALLEY",9,2,30]
[1,132,"LOCUST VALLEY - HUNTER DUSOLD","LOCUST VALLEY",9,1,38]
[1,126,"LOCUST VALLEY - NICK CASELLA","LOCUST VALLEY",11,5,18]
[1,152,"LOCUST VALLEY - SAM WARD","LOCUST VALLEY",11,3,26]
[1,160,"LOCUST VALLEY - MIKE DUSOLD","LOCUST VALLEY",11,null,12]
[1,285,"LOCUST VALLEY - SPENCER MATTAEI","LOCUST VALLEY",10,null,12]
[1,113,"LONG BEACH - JACORI TEEMER","LONG BEACH",8,1,38]
[1,120,"LYNDONVILLE - ANTHONY RECCO","LYNDONVILLE",11,3,26]
[1,106,"MAINE ENDWELL - KOBE GARREHY","MAINE ENDWELL",10,null,12]
[1,113,"MALONE - CAMERON SEARLES","MALONE",10,null,12]
[1,195,"MAMARONECK - YOUSSIF HEMIDA","MAMARONECK",11,null,12]
[2,120,"MAPLE GROVE - BRADLEY BIHLER ","MAPLE GROVE",10,4,22]
[2,152,"MAPLE GROVE - BRIAN WESTERDAHL ","MAPLE GROVE",11,null,12]
[2,160,"MAPLE GROVE - HOWIE NOLAN ","MAPLE GROVE",11,6,14]
[1,126,"MASSENA - BRIAN PLOURDE","MASSENA",10,null,12]
[2,145,"MASSENA - MICHAEL BROWN","MASSENA",9,null,12]
[1,126,"MASSENA - ALEC DENNY","MASSENA",9,null,12]
[1,145,"MASSENA - GAVIN PERRINE","MASSENA",8,null,12]
[2,99,"MASSENA - AUSTIN AMO","MASSENA",10,null,12]
[2,113,"MASSENA - HUNTER PERRINE","MASSENA",10,null,12]
[2,120,"MASSENA - NOLAN TERRANCE","MASSENA",11,null,12]
[2,138,"MATTITUCK - JACK BOKINA","MATTITUCK",8,null,12]
[2,145,"MATTITUCK - JAMES HOEG","MATTITUCK",9,null,12]
[2,285,"MATTITUCK - ADAM GOODE","MATTITUCK",11,null,12]
[1,99,"MEXICO - THEO POWERS","MEXICO",10,3,26]
[2,113,"MEXICO - AUSTIN WHITNEY","MEXICO",11,null,12]
[2,126,"MEXICO - TREVOR ALLARD","MEXICO",11,1,38]
[2,106,"MEXICO - JACOB WOOLSON","MEXICO",11,4,22]
[1,220,"MIDLAKES - HAMMOND RAES","MIDLAKES",9,null,12]
[2,120,"MIDLAKES - DERIAN WOODARD","MIDLAKES",11,null,12]
[2,152,"MINEOLA - PETER MCCORMICK","MINEOLA",11,null,12]
[2,160,"MINEOLA - EDIEN HINCAPIE","MINEOLA",11,null,12]
[1,99,"MINISINK VALLEY - GERARD DALY","MINISINK VALLEY",11,null,12]
[1,126,"MINISINK VALLEY - CHRIS TRUGLIO","MINISINK VALLEY",11,null,12]
[1,132,"MINISINK VALLEY - MICHAEL RACCIOPPI","MINISINK VALLEY",11,null,12]
[1,138,"MONROE WOODBURY - VINNY VESPA","MONROE WOODBURY",11,3,26]
[1,145,"MONRIE WOODBURY - EVAN BARCZAK","MONROE WOODBURY",9,null,12]
[1,160,"MONROE WOODBURY - NICK MCSHEA","MONROE WOODBURY",10,null,12]
[1,285,"MONSIGNOR FARRELL - KARL WIESNER","MONSIGNOR FARRELL",11,null,12]
[2,99,"MONSIGNOR FARRELL - MICHAEL NEWMAN","MONSIGNOR FARRELL",11,null,12]
[2,145,"MORRISVILLE EATON - ZACH BURKE","MORRISVILLE EATON",10,null,12]
[2,195,"MOUNT SAINT MICHAEL - ADDRIAN FERRARIE","MOUNT SAINT MICHAEL",11,null,12]
[2,106,"NEW HARTFORD - KELLAN MCKENNA","NEW HARTFORD",10,3,26]
[2,132,"NEW HARTFORD - DEMPSEY KING","NEW HARTFORD",11,null,12]
[2,160,"NEW PALTZ - KARL LINNEMAN","NEW PALTZ",11,null,12]
[2,170,"NEWARK VALLEY - BENNIE BAKER","NEWARK VALLEY",7,6,14]
[2,106,"NEWARK VALLEY - VINNIE DARPINO","NEWARK VALLEY",11,null,12]
[2,138,"NEWBURGH - DA'MANI BURNS","NEWBURGH",11,5,18]
[1,106,"NIAGARA FALLS - JEMONE CARTER","NIAGARA FALLS",11,6,14]
[1,120,"NIAGARA FALLS - DONNY MCCOY ","NIAGARA FALLS",11,null,12]
[2,132,"NORTH BABYLON - ANTHONY SPARACIO","NORTH BABYLON",10,4,22]
[2,195,"NORTH ROCKLAND - ALEX D'ANGELO","NORTH ROCKLAND",11,null,12]
[1,113,"NORTH ROCKLAND - BLAISE BENDEROTH","NORTH ROCKLAND",11,3,26]
[1,106,"NORTH TONAWANDA - TROY KELLER ","NORTH TONAWANDA",10,null,12]
[1,132,"N. ADIRONDACK - AUSTIN TROMBLEY","NORTHERN ADIRONDACK",9," ",12]
[1,138,"NORWICH - TRISTAN RIFANBURG","NORWICH",11,1,38]
[1,106,"NORWICH - FRANK GARCIA","NORWICH",11,1,38]
[1,120,"ODESSA MONTOUR - JOE RORICK","ODESSA MONTOUR",11,null,12]
[1,182,"OGDENSBURG - CORDELL DAVID","OGDENSBURG",8,null,12]
[1,145,"OGDENSBURG - TANNER LAPIENE","OGDENSBURG",9,null,12]
[1,195,"OGDENSBURG - BAILEY PHELPS","OGDENSBURG",11,null,12]
[2,120,"ONONDAGA - TYLER FIELD","ONONDAGA",11,null,12]
[1,152,"PAL MAC - ADAM WEST","PAL MAC",10,null,12]
[1,99,"PENFIELD - PARKER KROPMAN","PENFIELD",10,4,22]
[1,126,"PENFIELD - FRANKIE GISSENDANNER","PENFIELD",8,4,22]
[2,145,"PERU - COLIN HOGAN","PERU",9,null,12]
[1,99,"PERU - JORDAN BUSHEY","PERU",11,5,18]
[1,170,"PETRIDES - KEVIN VELEZ","PETRIDES",9,null,12]
[1,126,"PETRIDES - KEVIN MCCOLGAN","PETRIDES",9,null,12]
[1,106,"PETRIDES - JOE DIFORTE","PETRIDES",9,null,12]
[1,120,"PETRIDES - ROBERT WEIGOSS","PETRIDES",10,null,12]
[1,99,"PHOENIX - WILLIAM HILLIARD","PHOENIX",10,5,18]
[1,106,"PINE BUSH - ANTHONY STRAMIELLO","PINE BUSH",10,null,12]
[1,152,"PLAINVIEW JFK - PETER PAPPAS","PLAINVIEW JFK",9,2,30]
[1,106,"PORT BYRON - CHRIS PINCKNEY","PORT BRYON",11,6,14]
[2,132,"PORT JEFFERSON - MATTEO DEVINCENZO","PORT JEFFERSON",10,1,38]
[2,138,"PORT JEFFERSON - TRISTIN DEVINCENZO","PORT JEFFERSON",11,5,18]
[2,152,"PUTNAM VALLEY - MIKEY BRUNO","PUTNAM VALLEY",8,null,12]
[2,120,"PUTNAM VALLEY - WILLIE MESSINGER","PUTNAM VALLEY",11,null,12]
[2,99,"RED HOOK - TAYLOR BENSON","RED HOOK",9,null,12]
[2,113,"RED JACKET - ANDREW OGRODOWSKI","RED JACKET",11,null,12]
[2,152,"ROCKY POINT - TOMMY DUTTON","ROCKY POINT",11,5,18]
[2,132,"SACHEM EAST - JAKOB RESTREPO","SACHEM EAST",11,2,30]
[2,113,"SAHEM EAST - SEAN DEE","SACHEM EAST",11,null,12]
[1,106,"SARANAC - JACOB NOLAN","SARANAC",7,6,14]
[1,132,"SARANAC - JOHN DEVINS","SARANAC",8,null,12]
[2,113,"SARANAC - RAFAEL RIVERA","SARANAC",10,null,12]
[2,160,"SARANAC - COLBY STALEY","SARANAC",10,null,12]
[2,99,"SARANAC - PAUL HERREA","SARANAC",11,null,12]
[2,106,"SARATOGA - DOMINIC INZANA","SARATOGA",11,6,14]
[2,120,"SCHALMONT - NICK GALLO","SCHALMONT",11,4,22]
[2,145,"SCHUYLERVILLE - ANTHONY CARDINUTO","SCHUYLERVILLE",10,null,12]
[2,182,"SHENENDEHOWA - KEVIN PARKER","SHENENDEHOWA",10," ",12]
[1,99,"SHENENDEHOWA - JESSE PORTER","SHENENDEHOWA",11,4,22]
[1,106,"SHERBURNE EARLVILLE - GARRETT DUVALL","SHERBURNE EARLVILLE",11,3,26]
[2,182,"SIDNEY - AUSTIN DEAN","SIDNEY",11,6,14]
[2,106,"SMITHTOWN WEST - LANTZE LANGE","SMITHTOWN WEST",11,null,12]
[2,126,"SOUTH JEFFERSON - TREY LAFLAMME","SOUTH JEFFERSON",9," ",12]
[2,99,"SOUTHWESTERN - SHANE HETRICK","SOUTHWESTERN",8," ",12]
[2,113,"SOUTHWESTERN - RYAN HETRICK","SOUTHWESTERN",10,6,14]
[2,170,"ST. ANTHONY'S - BRIAN KELLY","ST ANTHONYS",9," ",12]
[2,113,"ST. ANTHONY'S - BENJAMIN LAMANTIA","ST ANTHONYS",11,3,26]
[2,195,"ST. ANTHONY'S - PETER CORBETT","ST ANTHONYS",11,null,12]
[1,145,"ST. JOSEPH'S COLL. - RICHIE JONES","ST JOSEPH COLLEGIATE",11," ",12]
[1,145,"SYOSSET - VITO ARUJAU","SYOSSET",9,1,38]
[1,285,"TIOGA - JESSE MANUEL","TIOGA",10," ",12]
[2,132,"TONAWANDA - CODY MCGREGOR","TONAWANDA",11,4,22]
[2,99,"TOTTENVILLE - JOE MARINO","TOTTENVILLE",11,null,12]
[2,106,"TUXEDO - DEAN ARTRIP","TUXEDO",9," ",12]
[2,126,"UNATEGO - RYAN MARSZAL","UNATEGO",11,2,30]
[2,170,"VERNON VERONA SH. - SIMON BRECKINRIDGE","VERNON VERONA SHERRILL",11,5,18]
[2,220,"VESTAL - DEREK OSMAN","VESTAL",9,null,12]
[1,120,"VICTOR - KEVIN MARCANO","VICTOR",11," ",12]
[2,182,"WALT WHITMAN - VIN FEOLA","WALT WHITMAN",11,2,30]
[2,106,"WALTON - LOGAN ROBINSON","WALTON",11,null,12]
[1,138,"WANTAUGH - JONATHAN LOWE","WANTAGH",8," ",12]
[1,152,"WANTAUGH - KYLE QUINN","WANTAGH",11,2,30]
[2,220,"WARD MELVILLE - NICK PICCININNI","WARD MELVILLE",11,1,38]
[2,285,"WARSAW - DYLAN WALKER","WARSAW",9," ",12]
[1,195,"WARSAW - COLIN ROYCE","WARSAW",11,6,14]
[2,99,"WARSAW - COREY FARRELL","WARSAW",11,6,14]
[2,99,"WARSAW - JOSH GRIFFIN","WARSAW",11,null,12]
[2,113,"WARWICK VALLEY - THOMAS WIGHTMAN","WARWICK VALLEY",11,null,12]
[1,99,"WARWICK VALLEY - RYAN FERRO","WARWICK VALLEY",9,null,12]
[1,120,"WATERLOO - JORDAN HAMILTON","WATERLOO",11,null,12]
[1,285,"WATKINS GLEN - BRANDON GOULD","WATKINS GLEN",10,null,12]
[1,170,"WATKINS GLEN - IAN CHEDZOY","WATKINS GLEN",9," ",12]
[1,113,"WAYNE - JOE SLIWOSKI","WAYNE",10,4,22]
[2,132,"WAYNE - LUKE YANKLOSKI","WAYNE",11,2,30]
[2,132,"WEBSTER SHROEDER - JOE LUPISELLA","WEBSTER SCHROEDER",11,null,12]
[1,99,"WESTBURY - RAECO JACKSON","WESTBURY",11,null,12]
[2,99,"WHITESBORO - TYLER HUDSON","WHITESBORO",11,null,12]
[2,170,"WHITNEY POINT - JORDAN TORBITT","WHITNEY POINT",10,null,12]
[2,152,"WILLIAM FLOYD - RYAN GERENA","WILLIAM FLOYD",11,null,12]

{"sheet":"ROSTER REVIEW","index":2,"n_rows":28,"n_cols":17,"rows_kept":28,"cut":false,"hidden":false,"merged":[]}
[]
[]
[]
[null,null,"WT.","WRESTLER","GR",null,"RECORD",null,null,null,"PFR","PP","SCP","NCP","CPP","CBP","TOTAL"]
[1,{"$f":"'COACHES WORKSHEET'!C1","v":"Enter School Here"},{"$f":"IF('COACHES WORKSHEET'!B3=0,\"\",'COACHES WORKSHEET'!B3)","v":""},{"$f":"IF('COACHES WORKSHEET'!C3=0,\"\",'COACHES WORKSHEET'!C3)","v":""},{"$f":"IF('COACHES WORKSHEET'!D3=0,\"\",'COACHES WORKSHEET'!D3)","v":""},null,{"$f":"'COACHES WORKSHEET'!E3","v":0},"-",{"$f":"'COACHES WORKSHEET'!F3","v":0},null,{"$f":"'COACHES WORKSHEET'!G3","v":"0"},{"$f":"'COACHES WORKSHEET'!I3","v":0},{"$f":"SUM('COACHES WORKSHEET'!K3:K10)","v":0},{"$f":"SUM('COACHES WORKSHEET'!M3:M6)","v":0},{"$f":"'COACHES WORKSHEET'!N3","v":0},{"$f":"'COACHES WORKSHEET'!O3","v":0},{"$f":"IFERROR('COACHES WORKSHEET'!P3,\"\")","v":0}]
[2,{"$f":"'COACHES WORKSHEET'!C1","v":"Enter School Here"},{"$f":"IF('COACHES WORKSHEET'!B12=0,\"\",'COACHES WORKSHEET'!B12)","v":""},{"$f":"IF('COACHES WORKSHEET'!C12=0,\"\",'COACHES WORKSHEET'!C12)","v":""},{"$f":"IF('COACHES WORKSHEET'!D12=0,\"\",'COACHES WORKSHEET'!D12)","v":""},null,{"$f":"'COACHES WORKSHEET'!E12","v":0},"-",{"$f":"'COACHES WORKSHEET'!F12","v":0},null,{"$f":"'COACHES WORKSHEET'!G12","v":"0"},{"$f":"'COACHES WORKSHEET'!I12","v":0},{"$f":"SUM('COACHES WORKSHEET'!K12:K19)","v":0},{"$f":"SUM('COACHES WORKSHEET'!M12:M15)","v":0},{"$f":"'COACHES WORKSHEET'!N12","v":0},{"$f":"'COACHES WORKSHEET'!O12","v":0},{"$f":"IFERROR('COACHES WORKSHEET'!P12,\"\")","v":0}]
[3,{"$f":"'COACHES WORKSHEET'!C1","v":"Enter School Here"},{"$f":"IF('COACHES WORKSHEET'!B21=0,\"\",'COACHES WORKSHEET'!B21)","v":""},{"$f":"IF('COACHES WORKSHEET'!C21=0,\"\",'COACHES WORKSHEET'!C21)","v":""},{"$f":"IF('COACHES WORKSHEET'!D21=0,\"\",'COACHES WORKSHEET'!D21)","v":""},null,{"$f":"'COACHES WORKSHEET'!E21","v":0},"-",{"$f":"'COACHES WORKSHEET'!F21","v":0},null,{"$f":"'COACHES WORKSHEET'!G21","v":"0"},{"$f":"'COACHES WORKSHEET'!I21","v":0},{"$f":"SUM('COACHES WORKSHEET'!K21:K28)","v":0},{"$f":"SUM('COACHES WORKSHEET'!M21:M24)","v":0},{"$f":"'COACHES WORKSHEET'!N21","v":0},{"$f":"'COACHES WORKSHEET'!O21","v":0},{"$f":"IFERROR('COACHES WORKSHEET'!P21,\"\")","v":0}]
[4,{"$f":"'COACHES WORKSHEET'!C1","v":"Enter School Here"},{"$f":"IF('COACHES WORKSHEET'!B30=0,\"\",'COACHES WORKSHEET'!B30)","v":""},{"$f":"IF('COACHES WORKSHEET'!C30=0,\"\",'COACHES WORKSHEET'!C30)","v":""},{"$f":"IF('COACHES WORKSHEET'!D30=0,\"\",'COACHES WORKSHEET'!D30)","v":""},null,{"$f":"'COACHES WORKSHEET'!E30","v":0},"-",{"$f":"'COACHES WORKSHEET'!F30","v":0},null,{"$f":"'COACHES WORKSHEET'!G30","v":"0"},{"$f":"'COACHES WORKSHEET'!I30","v":0},{"$f":"SUM('COACHES WORKSHEET'!K30:K37)","v":0},{"$f":"SUM('COACHES WORKSHEET'!M30:M33)","v":0},{"$f":"'COACHES WORKSHEET'!N30","v":0},{"$f":"'COACHES WORKSHEET'!O30","v":0},{"$f":"IFERROR('COACHES WORKSHEET'!P30,\"\")","v":0}]
[5,{"$f":"'COACHES WORKSHEET'!C1","v":"Enter School Here"},{"$f":"IF('COACHES WORKSHEET'!B39=0,\"\",'COACHES WORKSHEET'!B39)","v":""},{"$f":"IF('COACHES WORKSHEET'!C39=0,\"\",'COACHES WORKSHEET'!C39)","v":""},{"$f":"IF('COACHES WORKSHEET'!D39=0,\"\",'COACHES WORKSHEET'!D39)","v":""},null,{"$f":"'COACHES WORKSHEET'!E39","v":0},"-",{"$f":"'COACHES WORKSHEET'!F39","v":0},null,{"$f":"'COACHES WORKSHEET'!G39","v":"0"},{"$f":"'COACHES WORKSHEET'!I39","v":0},{"$f":"SUM('COACHES WORKSHEET'!K39:K46)","v":0},{"$f":"SUM('COACHES WORKSHEET'!M39:M42)","v":0},{"$f":"'COACHES WORKSHEET'!N39","v":0},{"$f":"'COACHES WORKSHEET'!O39","v":0},{"$f":"IFERROR('COACHES WORKSHEET'!P39,\"\")","v":0}]
[6,{"$f":"'COACHES WORKSHEET'!C1","v":"Enter School Here"},{"$f":"IF('COACHES WORKSHEET'!B48=0,\"\",'COACHES WORKSHEET'!B48)","v":""},{"$f":"IF('COACHES WORKSHEET'!C48=0,\"\",'COACHES WORKSHEET'!C48)","v":""},{"$f":"IF('COACHES WORKSHEET'!D48=0,\"\",'COACHES WORKSHEET'!D48)","v":""},null,{"$f":"'COACHES WORKSHEET'!E48","v":0},"-",{"$f":"'COACHES WORKSHEET'!F48","v":0},null,{"$f":"'COACHES WORKSHEET'!G48","v":"0"},{"$f":"'COACHES WORKSHEET'!I48","v":0},{"$f":"SUM('COACHES WORKSHEET'!K48:K55)","v":0},{"$f":"SUM('COACHES WORKSHEET'!M48:M51)","v":0},{"$f":"'COACHES WORKSHEET'!N48","v":0},{"$f":"'COACHES WORKSHEET'!O48","v":0},{"$f":"IFERROR('COACHES WORKSHEET'!P48,\"\")","v":0}]
[7,{"$f":"'COACHES WORKSHEET'!C1","v":"Enter School Here"},{"$f":"IF('COACHES WORKSHEET'!B57=0,\"\",'COACHES WORKSHEET'!B57)","v":""},{"$f":"IF('COACHES WORKSHEET'!C57=0,\"\",'COACHES WORKSHEET'!C57)","v":""},{"$f":"IF('COACHES WORKSHEET'!D57=0,\"\",'COACHES WORKSHEET'!D57)","v":""},null,{"$f":"'COACHES WORKSHEET'!E57","v":0},"-",{"$f":"'COACHES WORKSHEET'!F57","v":0},null,{"$f":"'COACHES WORKSHEET'!G57","v":"0"},{"$f":"'COACHES WORKSHEET'!I57","v":0},{"$f":"SUM('COACHES WORKSHEET'!K57:K64)","v":0},{"$f":"SUM('COACHES WORKSHEET'!M57:M60)","v":0},{"$f":"'COACHES WORKSHEET'!N57","v":0},{"$f":"'COACHES WORKSHEET'!O57","v":0},{"$f":"IFERROR('COACHES WORKSHEET'!P57,\"\")","v":0}]
[8,{"$f":"'COACHES WORKSHEET'!C1","v":"Enter School Here"},{"$f":"IF('COACHES WORKSHEET'!B66=0,\"\",'COACHES WORKSHEET'!B66)","v":""},{"$f":"IF('COACHES WORKSHEET'!C66=0,\"\",'COACHES WORKSHEET'!C66)","v":""},{"$f":"IF('COACHES WORKSHEET'!D66=0,\"\",'COACHES WORKSHEET'!D66)","v":""},null,{"$f":"'COACHES WORKSHEET'!E66","v":0},"-",{"$f":"'COACHES WORKSHEET'!F66","v":0},null,{"$f":"'COACHES WORKSHEET'!G66","v":"0"},{"$f":"'COACHES WORKSHEET'!I66","v":0},{"$f":"SUM('COACHES WORKSHEET'!K66:K73)","v":0},{"$f":"SUM('COACHES WORKSHEET'!M66:M69)","v":0},{"$f":"'COACHES WORKSHEET'!N66","v":0},{"$f":"'COACHES WORKSHEET'!O66","v":0},{"$f":"IFERROR('COACHES WORKSHEET'!P66,\"\")","v":0}]
[9,{"$f":"'COACHES WORKSHEET'!C1","v":"Enter School Here"},{"$f":"IF('COACHES WORKSHEET'!B75=0,\"\",'COACHES WORKSHEET'!B75)","v":""},{"$f":"IF('COACHES WORKSHEET'!C75=0,\"\",'COACHES WORKSHEET'!C75)","v":""},{"$f":"IF('COACHES WORKSHEET'!D75=0,\"\",'COACHES WORKSHEET'!D75)","v":""},null,{"$f":"'COACHES WORKSHEET'!E75","v":0},"-",{"$f":"'COACHES WORKSHEET'!F75","v":0},null,{"$f":"'COACHES WORKSHEET'!G75","v":"0"},{"$f":"'COACHES WORKSHEET'!I75","v":0},{"$f":"SUM('COACHES WORKSHEET'!K75:K82)","v":0},{"$f":"SUM('COACHES WORKSHEET'!M75:M78)","v":0},{"$f":"'COACHES WORKSHEET'!N75","v":0},{"$f":"'COACHES WORKSHEET'!O75","v":0},{"$f":"IFERROR('COACHES WORKSHEET'!P75,\"\")","v":0}]
[10,{"$f":"'COACHES WORKSHEET'!C1","v":"Enter School Here"},{"$f":"IF('COACHES WORKSHEET'!B84=0,\"\",'COACHES WORKSHEET'!B84)","v":""},{"$f":"IF('COACHES WORKSHEET'!C84=0,\"\",'COACHES WORKSHEET'!C84)","v":""},{"$f":"IF('COACHES WORKSHEET'!D84=0,\"\",'COACHES WORKSHEET'!D84)","v":""},null,{"$f":"'COACHES WORKSHEET'!E84","v":0},"-",{"$f":"'COACHES WORKSHEET'!F84","v":0},null,{"$f":"'COACHES WORKSHEET'!G84","v":"0"},{"$f":"'COACHES WORKSHEET'!I84","v":0},{"$f":"SUM('COACHES WORKSHEET'!K84:K91)","v":0},{"$f":"SUM('COACHES WORKSHEET'!M84:M87)","v":0},{"$f":"'COACHES WORKSHEET'!N84","v":0},{"$f":"'COACHES WORKSHEET'!O84","v":0},{"$f":"IFERROR('COACHES WORKSHEET'!P84,\"\")","v":0}]
[11,{"$f":"'COACHES WORKSHEET'!C1","v":"Enter School Here"},{"$f":"IF('COACHES WORKSHEET'!B93=0,\"\",'COACHES WORKSHEET'!B93)","v":""},{"$f":"IF('COACHES WORKSHEET'!C93=0,\"\",'COACHES WORKSHEET'!C93)","v":""},{"$f":"IF('COACHES WORKSHEET'!D93=0,\"\",'COACHES WORKSHEET'!D93)","v":""},null,{"$f":"'COACHES WORKSHEET'!E93","v":0},"-",{"$f":"'COACHES WORKSHEET'!F93","v":0},null,{"$f":"'COACHES WORKSHEET'!G93","v":"0"},{"$f":"'COACHES WORKSHEET'!I93","v":0},{"$f":"SUM('COACHES WORKSHEET'!K93:K100)","v":0},{"$f":"SUM('COACHES WORKSHEET'!M93:M96)","v":0},{"$f":"'COACHES WORKSHEET'!N93","v":0},{"$f":"'COACHES WORKSHEET'!O93","v":0},{"$f":"IFERROR('COACHES WORKSHEET'!P93,\"\")","v":0}]
[12,{"$f":"'COACHES WORKSHEET'!C1","v":"Enter School Here"},{"$f":"IF('COACHES WORKSHEET'!B102=0,\"\",'COACHES WORKSHEET'!B102)","v":""},{"$f":"IF('COACHES WORKSHEET'!C102=0,\"\",'COACHES WORKSHEET'!C102)","v":""},{"$f":"IF('COACHES WORKSHEET'!D102=0,\"\",'COACHES WORKSHEET'!D102)","v":""},null,{"$f":"'COACHES WORKSHEET'!E102","v":0},"-",{"$f":"'COACHES WORKSHEET'!F102","v":0},null,{"$f":"'COACHES WORKSHEET'!G102","v":"0"},{"$f":"'COACHES WORKSHEET'!I102","v":0},{"$f":"SUM('COACHES WORKSHEET'!K102:K109)","v":0},{"$f":"SUM('COACHES WORKSHEET'!M102:M105)","v":0},{"$f":"'COACHES WORKSHEET'!N102","v":0},{"$f":"'COACHES WORKSHEET'!O102","v":0},{"$f":"IFERROR('COACHES WORKSHEET'!P102,\"\")","v":0}]
[13,{"$f":"'COACHES WORKSHEET'!C1","v":"Enter School Here"},{"$f":"IF('COACHES WORKSHEET'!B111=0,\"\",'COACHES WORKSHEET'!B111)","v":""},{"$f":"IF('COACHES WORKSHEET'!C111=0,\"\",'COACHES WORKSHEET'!C111)","v":""},{"$f":"IF('COACHES WORKSHEET'!D111=0,\"\",'COACHES WORKSHEET'!D111)","v":""},null,{"$f":"'COACHES WORKSHEET'!E111","v":0},"-",{"$f":"'COACHES WORKSHEET'!F111","v":0},null,{"$f":"'COACHES WORKSHEET'!G111","v":"0"},{"$f":"'COACHES WORKSHEET'!I111","v":0},{"$f":"SUM('COACHES WORKSHEET'!K111:K118)","v":0},{"$f":"SUM('COACHES WORKSHEET'!M111:M114)","v":0},{"$f":"'COACHES WORKSHEET'!N111","v":0},{"$f":"'COACHES WORKSHEET'!O111","v":0},{"$f":"IFERROR('COACHES WORKSHEET'!P111,\"\")","v":0}]
[]
[]
[]
[]
[null,null,null,"KEY"]
[null,null,null,"PFR - Points from Record"]
[null,null,null,"PP - Placement Points"]
[null,null,null,"SCP - Section Competition Points"]
[null,null,null,"NCP - NYS Competition Points"]
[null,null,null,"CPP - Class Place Points from prior season"]
[null,null,null,"CPB - Class Bonus points from current season"]

{"sheet":"Points Verification","index":3,"n_rows":139,"n_cols":20,"rows_kept":139,"cut":false,"hidden":false,"merged":[]}
[]
[]
[null,null,null,null,null,null,"SCHOOL:  ",null,{"$f":"'COACHES WORKSHEET'!C1","v":"Enter School Here"}]
[]
["WT","       NAME",null,"RECORD",null,null,null,"WT","       NAME",null,"RECORD",null,null,null,"WT","       NAME",null,"RECORD"]
[{"$f":"'ROSTER REVIEW'!C5","v":""},{"$f":"'ROSTER REVIEW'!D5","v":""},null,{"$f":"'ROSTER REVIEW'!G5","v":0},"-",{"$f":"'ROSTER REVIEW'!I5","v":0},null,{"$f":"'ROSTER REVIEW'!C6","v":""},{"$f":"'ROSTER REVIEW'!D6","v":""},null,{"$f":"'ROSTER REVIEW'!G6","v":0},"-",{"$f":"'ROSTER REVIEW'!I6","v":0},null,{"$f":"'ROSTER REVIEW'!C7","v":""},{"$f":"'ROSTER REVIEW'!D7","v":""},null,{"$f":"'ROSTER REVIEW'!G7","v":0},"-",{"$f":"'ROSTER REVIEW'!I7","v":0}]
["POINTS FROM RECORD",null,null,null,null,{"$f":"'ROSTER REVIEW'!K5","v":"0"},null,"POINTS FROM RECORD",null,null,null,null,{"$f":"'ROSTER REVIEW'!K6","v":"0"},null,"POINTS FROM RECORD",null,null,null,null,{"$f":"'ROSTER REVIEW'!K7","v":"0"}]
[{"$f":"'COACHES WORKSHEET'!H3","v":"Did Not Place"},null,null,null,null,{"$f":"'ROSTER REVIEW'!L5","v":0},null,{"$f":"'COACHES WORKSHEET'!H12","v":"Did Not Place"},null,null,null,null,{"$f":"'ROSTER REVIEW'!L6","v":0},null,{"$f":"'COACHES WORKSHEET'!H21","v":"Did Not Place"},null,null,null,null,{"$f":"'ROSTER REVIEW'!L7","v":0}]
[{"$f":"'COACHES WORKSHEET'!J3","v":"NO WINS OVER SEC 6 PLACERS"},null,null,null,null,{"$f":"'COACHES WORKSHEET'!K3","v":0},null,{"$f":"'COACHES WORKSHEET'!J12","v":"NO WINS OVER SEC 6 PLACERS"},null,null,null,null,{"$f":"'COACHES WORKSHEET'!K12","v":0},null,{"$f":"'COACHES WORKSHEET'!J21","v":"NO WINS OVER SEC 6 PLACERS"},null,null,null,null,{"$f":"'COACHES WORKSHEET'!K21","v":0}]
[{"$f":"'COACHES WORKSHEET'!J4","v":"NO WINS OVER SEC 6 PLACERS"},null,null,null,null,{"$f":"'COACHES WORKSHEET'!K4","v":0},null,{"$f":"'COACHES WORKSHEET'!J13","v":"NO WINS OVER SEC 6 PLACERS"},null,null,null,null,{"$f":"'COACHES WORKSHEET'!K13","v":0},null,{"$f":"'COACHES WORKSHEET'!J22","v":"NO WINS OVER SEC 6 PLACERS"},null,null,null,null,{"$f":"'COACHES WORKSHEET'!K22","v":0}]
[{"$f":"'COACHES WORKSHEET'!J5","v":"NO WINS OVER SEC 6 PLACERS"},null,null,null,null,{"$f":"'COACHES WORKSHEET'!K5","v":0},null,{"$f":"'COACHES WORKSHEET'!J14","v":"NO WINS OVER SEC 6 PLACERS"},null,null,null,null,{"$f":"'COACHES WORKSHEET'!K14","v":0},null,{"$f":"'COACHES WORKSHEET'!J23","v":"NO WINS OVER SEC 6 PLACERS"},null,null,null,null,{"$f":"'COACHES WORKSHEET'!K23","v":0}]
[{"$f":"'COACHES WORKSHEET'!J6","v":"NO WINS OVER SEC 6 PLACERS"},null,null,null,null,{"$f":"'COACHES WORKSHEET'!K6","v":0},null,{"$f":"'COACHES WORKSHEET'!J15","v":"NO WINS OVER SEC 6 PLACERS"},null,null,null,null,{"$f":"'COACHES WORKSHEET'!K15","v":0},null,{"$f":"'COACHES WORKSHEET'!J24","v":"NO WINS OVER SEC 6 PLACERS"},null,null,null,null,{"$f":"'COACHES WORKSHEET'!K24","v":0}]
[{"$f":"'COACHES WORKSHEET'!J7","v":"NO WINS OVER SEC 6 PLACERS"},null,null,null,null,{"$f":"'COACHES WORKSHEET'!K7","v":0},null,{"$f":"'COACHES WORKSHEET'!J16","v":"NO WINS OVER SEC 6 PLACERS"},null,null,null,null,{"$f":"'COACHES WORKSHEET'!K16","v":0},null,{"$f":"'COACHES WORKSHEET'!J25","v":"NO WINS OVER SEC 6 PLACERS"},null,null,null,null,{"$f":"'COACHES WORKSHEET'!K25","v":0}]
[{"$f":"'COACHES WORKSHEET'!J8","v":"NO WINS OVER SEC 6 PLACERS"},null,null,null,null,{"$f":"'COACHES WORKSHEET'!K8","v":0},null,{"$f":"'COACHES WORKSHEET'!J17","v":"NO WINS OVER SEC 6 PLACERS"},null,null,null,null,{"$f":"'COACHES WORKSHEET'!K17","v":0},null,{"$f":"'COACHES WORKSHEET'!J26","v":"NO WINS OVER SEC 6 PLACERS"},null,null,null,null,{"$f":"'COACHES WORKSHEET'!K26","v":0}]
[{"$f":"'COACHES WORKSHEET'!J9","v":"NO WINS OVER SEC 6 PLACERS"},null,null,null,null,{"$f":"'COACHES WORKSHEET'!K9","v":0},null,{"$f":"'COACHES WORKSHEET'!J18","v":"NO WINS OVER SEC 6 PLACERS"},null,null,null,null,{"$f":"'COACHES WORKSHEET'!K18","v":0},null,{"$f":"'COACHES WORKSHEET'!J27","v":"NO WINS OVER SEC 6 PLACERS"},null,null,null,null,{"$f":"'COACHES WORKSHEET'!K27","v":0}]
[{"$f":"'COACHES WORKSHEET'!J10","v":"NO WINS OVER SEC 6 PLACERS"},null,null,null,null,{"$f":"'COACHES WORKSHEET'!K10","v":0},null,{"$f":"'COACHES WORKSHEET'!J19","v":"NO WINS OVER SEC 6 PLACERS"},null,null,null,null,{"$f":"'COACHES WORKSHEET'!K19","v":0},null,{"$f":"'COACHES WORKSHEET'!J28","v":"NO WINS OVER SEC 6 PLACERS"},null,null,null,null,{"$f":"'COACHES WORKSHEET'!K28","v":0}]
[{"$f":"'COACHES WORKSHEET'!L3","v":"NO WINS OVER STATE COMPETITION"},null,null,null,null,{"$f":"'COACHES WORKSHEET'!M3","v":0},null,{"$f":"'COACHES WORKSHEET'!L12","v":"NO WINS OVER STATE COMPETITION"},null,null,null,null,{"$f":"'COACHES WORKSHEET'!M12","v":0},null,{"$f":"'COACHES WORKSHEET'!L21","v":"NO WINS OVER STATE COMPETITION"},null,null,null,null,{"$f":"'COACHES WORKSHEET'!M21","v":0}]
[{"$f":"'COACHES WORKSHEET'!L4","v":"NO WINS OVER STATE COMPETITION"},null,null,null,null,{"$f":"'COACHES WORKSHEET'!M4","v":0},null,{"$f":"'COACHES WORKSHEET'!L13","v":"NO WINS OVER STATE COMPETITION"},null,null,null,null,{"$f":"'COACHES WORKSHEET'!M13","v":0},null,{"$f":"'COACHES WORKSHEET'!L22","v":"NO WINS OVER STATE COMPETITION"},null,null,null,null,{"$f":"'COACHES WORKSHEET'!M22","v":0}]
[{"$f":"'COACHES WORKSHEET'!L5","v":"NO WINS OVER STATE COMPETITION"},null,null,null,null,{"$f":"'COACHES WORKSHEET'!M5","v":0},null,{"$f":"'COACHES WORKSHEET'!L14","v":"NO WINS OVER STATE COMPETITION"},null,null,null,null,{"$f":"'COACHES WORKSHEET'!M14","v":0},null,{"$f":"'COACHES WORKSHEET'!L23","v":"NO WINS OVER STATE COMPETITION"},null,null,null,null,{"$f":"'COACHES WORKSHEET'!M23","v":0}]
[{"$f":"'COACHES WORKSHEET'!L6","v":"NO WINS OVER STATE COMPETITION"},null,null,null,null,{"$f":"'COACHES WORKSHEET'!M6","v":0},null,{"$f":"'COACHES WORKSHEET'!L15","v":"NO WINS OVER STATE COMPETITION"},null,null,null,null,{"$f":"'COACHES WORKSHEET'!M15","v":0},null,{"$f":"'COACHES WORKSHEET'!L24","v":"NO WINS OVER STATE COMPETITION"},null,null,null,null,{"$f":"'COACHES WORKSHEET'!M24","v":0}]
["Class Tournament Place Points",null,null,null,null,{"$f":"'COACHES WORKSHEET'!N3","v":0},null,"Class Tournament Place Points",null,null,null,null,{"$f":"'COACHES WORKSHEET'!N12","v":0},null,"Class Tournament Place Points",null,null,null,null,{"$f":"'COACHES WORKSHEET'!N21","v":0}]
["Class Tournament Bonus Points",null,null,null,null,{"$f":"'COACHES WORKSHEET'!O3","v":0},null,"Class Tournament Bonus Points",null,null,null,null,{"$f":"'COACHES WORKSHEET'!O12","v":0},null,"Class Tournament Bonus Points",null,null,null,null,{"$f":"'COACHES WORKSHEET'!O21","v":0}]
[null,"Head to Head Wins",null,null,null,null,null,null,"Head to Head Wins",null,null,null,null,null,null,"Head to Head Wins"]
[1,{"$f":"IF('COACHES WORKSHEET'!H4=0,\"\",'COACHES WORKSHEET'!H4)","v":""},null,null,null,null,null,1,{"$f":"IF('COACHES WORKSHEET'!H13=0,\"\",'COACHES WORKSHEET'!H13)","v":""},null,null,null,null,null,1,{"$f":"IF('COACHES WORKSHEET'!H22=0,\"\",'COACHES WORKSHEET'!H22)","v":""}]
[2,{"$f":"IF('COACHES WORKSHEET'!H5=0,\"\",'COACHES WORKSHEET'!H5)","v":""},null,null,null,null,null,2,{"$f":"IF('COACHES WORKSHEET'!H14=0,\"\",'COACHES WORKSHEET'!H14)","v":""},null,null,null,null,null,2,{"$f":"IF('COACHES WORKSHEET'!H23=0,\"\",'COACHES WORKSHEET'!H23)","v":""}]
[3,{"$f":"IF('COACHES WORKSHEET'!H6=0,\"\",'COACHES WORKSHEET'!H6)","v":""},null,null,null,null,null,3,{"$f":"IF('COACHES WORKSHEET'!H15=0,\"\",'COACHES WORKSHEET'!H15)","v":""},null,null,null,null,null,3,{"$f":"IF('COACHES WORKSHEET'!H24=0,\"\",'COACHES WORKSHEET'!H24)","v":""}]
[4,{"$f":"IF('COACHES WORKSHEET'!H7=0,\"\",'COACHES WORKSHEET'!H7)","v":""},null,null,null,null,null,4,{"$f":"IF('COACHES WORKSHEET'!H16=0,\"\",'COACHES WORKSHEET'!H16)","v":""},null,null,null,null,null,4,{"$f":"IF('COACHES WORKSHEET'!H25=0,\"\",'COACHES WORKSHEET'!H25)","v":""}]
[5,{"$f":"IF('COACHES WORKSHEET'!H8=0,\"\",'COACHES WORKSHEET'!H8)","v":""},null,null,null,null,null,5,{"$f":"IF('COACHES WORKSHEET'!H17=0,\"\",'COACHES WORKSHEET'!H17)","v":""},null,null,null,null,null,5,{"$f":"IF('COACHES WORKSHEET'!H26=0,\"\",'COACHES WORKSHEET'!H26)","v":""}]
["TOTAL PTS:",null,null,{"$f":"'ROSTER REVIEW'!Q5","v":0},null,null,null,"TOTAL PTS:",null,null,{"$f":"'ROSTER REVIEW'!Q6","v":0},null,null,null,"TOTAL PTS:",null,null,{"$f":"'ROSTER REVIEW'!Q7","v":0}]
[]
["WT","       NAME",null,"RECORD",null,null,null,"WT","       NAME",null,"RECORD",null,null,null,"WT","       NAME",null,"RECORD"]
[{"$f":"'ROSTER REVIEW'!C8","v":""},{"$f":"'ROSTER REVIEW'!D8","v":""},null,{"$f":"'ROSTER REVIEW'!G8","v":0},"-",{"$f":"'ROSTER REVIEW'!I8","v":0},null,{"$f":"'ROSTER REVIEW'!C9","v":""},{"$f":"'ROSTER REVIEW'!D9","v":""},null,{"$f":"'ROSTER REVIEW'!G9","v":0},"-",{"$f":"'ROSTER REVIEW'!I9","v":0},null,{"$f":"'ROSTER REVIEW'!C10","v":""},{"$f":"'ROSTER REVIEW'!D10","v":""},null,{"$f":"'ROSTER REVIEW'!G10","v":0},"-",{"$f":"'ROSTER REVIEW'!I10","v":0}]
["POINTS FROM RECORD",null,null,null,null,{"$f":"'ROSTER REVIEW'!K8","v":"0"},null,"POINTS FROM RECORD",null,null,null,null,{"$f":"'ROSTER REVIEW'!K9","v":"0"},null,"POINTS FROM RECORD",null,null,null,null,{"$f":"'ROSTER REVIEW'!K10","v":"0"}]
[{"$f":"'COACHES WORKSHEET'!H30","v":"Did Not Place"},null,null,null,null,{"$f":"'ROSTER REVIEW'!L8","v":0},null,{"$f":"'COACHES WORKSHEET'!H39","v":"Did Not Place"},null,null,null,null,{"$f":"'COACHES WORKSHEET'!I39","v":0},null,{"$f":"'COACHES WORKSHEET'!H48","v":"Did Not Place"},null,null,null,null,{"$f":"'COACHES WORKSHEET'!I48","v":0}]
[{"$f":"'COACHES WORKSHEET'!J30","v":"NO WINS OVER SEC 6 PLACERS"},null,null,null,null,{"$f":"'COACHES WORKSHEET'!K30","v":0},null,{"$f":"'COACHES WORKSHEET'!J39","v":"NO WINS OVER SEC 6 PLACERS"},null,null,null,null,{"$f":"'COACHES WORKSHEET'!K39","v":0},null,{"$f":"'COACHES WORKSHEET'!J48","v":"NO WINS OVER SEC 6 PLACERS"},null,null,null,null,{"$f":"'COACHES WORKSHEET'!K48","v":0}]
[{"$f":"'COACHES WORKSHEET'!J31","v":"NO WINS OVER SEC 6 PLACERS"},null,null,null,null,{"$f":"'COACHES WORKSHEET'!K31","v":0},null,{"$f":"'COACHES WORKSHEET'!J40","v":"NO WINS OVER SEC 6 PLACERS"},null,null,null,null,{"$f":"'COACHES WORKSHEET'!K40","v":0},null,{"$f":"'COACHES WORKSHEET'!J49","v":"NO WINS OVER SEC 6 PLACERS"},null,null,null,null,{"$f":"'COACHES WORKSHEET'!K49","v":0}]
[{"$f":"'COACHES WORKSHEET'!J32","v":"NO WINS OVER SEC 6 PLACERS"},null,null,null,null,{"$f":"'COACHES WORKSHEET'!K32","v":0},null,{"$f":"'COACHES WORKSHEET'!J41","v":"NO WINS OVER SEC 6 PLACERS"},null,null,null,null,{"$f":"'COACHES WORKSHEET'!K41","v":0},null,{"$f":"'COACHES WORKSHEET'!J50","v":"NO WINS OVER SEC 6 PLACERS"},null,null,null,null,{"$f":"'COACHES WORKSHEET'!K50","v":0}]
[{"$f":"'COACHES WORKSHEET'!J33","v":"NO WINS OVER SEC 6 PLACERS"},null,null,null,null,{"$f":"'COACHES WORKSHEET'!K33","v":0},null,{"$f":"'COACHES WORKSHEET'!J42","v":"NO WINS OVER SEC 6 PLACERS"},null,null,null,null,{"$f":"'COACHES WORKSHEET'!K42","v":0},null,{"$f":"'COACHES WORKSHEET'!J51","v":"NO WINS OVER SEC 6 PLACERS"},null,null,null,null,{"$f":"'COACHES WORKSHEET'!K51","v":0}]
[{"$f":"'COACHES WORKSHEET'!J34","v":"NO WINS OVER SEC 6 PLACERS"},null,null,null,null,{"$f":"'COACHES WORKSHEET'!K34","v":0},null,{"$f":"'COACHES WORKSHEET'!J43","v":"NO WINS OVER SEC 6 PLACERS"},null,null,null,null,{"$f":"'COACHES WORKSHEET'!K43","v":0},null,{"$f":"'COACHES WORKSHEET'!J52","v":"NO WINS OVER SEC 6 PLACERS"},null,null,null,null,{"$f":"'COACHES WORKSHEET'!K52","v":0}]
[{"$f":"'COACHES WORKSHEET'!J35","v":"NO WINS OVER SEC 6 PLACERS"},null,null,null,null,{"$f":"'COACHES WORKSHEET'!K35","v":0},null,{"$f":"'COACHES WORKSHEET'!J44","v":"NO WINS OVER SEC 6 PLACERS"},null,null,null,null,{"$f":"'COACHES WORKSHEET'!K44","v":0},null,{"$f":"'COACHES WORKSHEET'!J53","v":"NO WINS OVER SEC 6 PLACERS"},null,null,null,null,{"$f":"'COACHES WORKSHEET'!K53","v":0}]
[{"$f":"'COACHES WORKSHEET'!J36","v":"NO WINS OVER SEC 6 PLACERS"},null,null,null,null,{"$f":"'COACHES WORKSHEET'!K36","v":0},null,{"$f":"'COACHES WORKSHEET'!J45","v":"NO WINS OVER SEC 6 PLACERS"},null,null,null,null,{"$f":"'COACHES WORKSHEET'!K45","v":0},null,{"$f":"'COACHES WORKSHEET'!J54","v":"NO WINS OVER SEC 6 PLACERS"},null,null,null,null,{"$f":"'COACHES WORKSHEET'!K54","v":0}]
[{"$f":"'COACHES WORKSHEET'!J37","v":"NO WINS OVER SEC 6 PLACERS"},null,null,null,null,{"$f":"'COACHES WORKSHEET'!K35","v":0},null,{"$f":"'COACHES WORKSHEET'!J46","v":"NO WINS OVER SEC 6 PLACERS"},null,null,null,null,{"$f":"'COACHES WORKSHEET'!K44","v":0},null,{"$f":"'COACHES WORKSHEET'!J55","v":"NO WINS OVER SEC 6 PLACERS"},null,null,null,null,{"$f":"'COACHES WORKSHEET'!K53","v":0}]
[{"$f":"'COACHES WORKSHEET'!L30","v":"NO WINS OVER STATE COMPETITION"},null,null,null,null,{"$f":"'COACHES WORKSHEET'!M30","v":0},null,{"$f":"'COACHES WORKSHEET'!L39","v":"NO WINS OVER STATE COMPETITION"},null,null,null,null,{"$f":"'COACHES WORKSHEET'!M39","v":0},null,{"$f":"'COACHES WORKSHEET'!L48","v":"NO WINS OVER STATE COMPETITION"},null,null,null,null,{"$f":"'COACHES WORKSHEET'!M48","v":0}]
[{"$f":"'COACHES WORKSHEET'!L31","v":"NO WINS OVER STATE COMPETITION"},null,null,null,null,{"$f":"'COACHES WORKSHEET'!M31","v":0},null,{"$f":"'COACHES WORKSHEET'!L40","v":"NO WINS OVER STATE COMPETITION"},null,null,null,null,{"$f":"'COACHES WORKSHEET'!M40","v":0},null,{"$f":"'COACHES WORKSHEET'!L49","v":"NO WINS OVER STATE COMPETITION"},null,null,null,null,{"$f":"'COACHES WORKSHEET'!M49","v":0}]
[{"$f":"'COACHES WORKSHEET'!L32","v":"NO WINS OVER STATE COMPETITION"},null,null,null,null,{"$f":"'COACHES WORKSHEET'!M32","v":0},null,{"$f":"'COACHES WORKSHEET'!L41","v":"NO WINS OVER STATE COMPETITION"},null,null,null,null,{"$f":"'COACHES WORKSHEET'!M41","v":0},null,{"$f":"'COACHES WORKSHEET'!L50","v":"NO WINS OVER STATE COMPETITION"},null,null,null,null,{"$f":"'COACHES WORKSHEET'!M50","v":0}]
[{"$f":"'COACHES WORKSHEET'!L33","v":"NO WINS OVER STATE COMPETITION"},null,null,null,null,{"$f":"'COACHES WORKSHEET'!M33","v":0},null,{"$f":"'COACHES WORKSHEET'!L42","v":"NO WINS OVER STATE COMPETITION"},null,null,null,null,{"$f":"'COACHES WORKSHEET'!M42","v":0},null,{"$f":"'COACHES WORKSHEET'!L51","v":"NO WINS OVER STATE COMPETITION"},null,null,null,null,{"$f":"'COACHES WORKSHEET'!M51","v":0}]
["Class Tournament Place Points",null,null,null,null,{"$f":"'COACHES WORKSHEET'!N30","v":0},null,"Class Tournament Place Points",null,null,null,null,{"$f":"'COACHES WORKSHEET'!N39","v":0},null,"Class Tournament Place Points",null,null,null,null,{"$f":"'COACHES WORKSHEET'!N48","v":0}]
["Class Tournament Bonus Points",null,null,null,null,{"$f":"'COACHES WORKSHEET'!O30","v":0},null,"Class Tournament Bonus Points",null,null,null,null,{"$f":"'COACHES WORKSHEET'!O39","v":0},null,"Class Tournament Bonus Points",null,null,null,null,{"$f":"'COACHES WORKSHEET'!O48","v":0}]
[null,"Head to Head Wins",null,null,null,null,null,null,"Head to Head Wins",null,null,null,null,null,null,"Head to Head Wins"]
[1,{"$f":"IF('COACHES WORKSHEET'!H31=0,\"\",'COACHES WORKSHEET'!H31)","v":""},null,null,null,null,null,1,{"$f":"IF('COACHES WORKSHEET'!H40=0,\"\",'COACHES WORKSHEET'!H40)","v":""},null,null,null,null,null,1,{"$f":"IF('COACHES WORKSHEET'!H49=0,\"\",'COACHES WORKSHEET'!H49)","v":""}]
[2,{"$f":"IF('COACHES WORKSHEET'!H32=0,\"\",'COACHES WORKSHEET'!H32)","v":""},null,null,null,null,null,2,{"$f":"IF('COACHES WORKSHEET'!H41=0,\"\",'COACHES WORKSHEET'!H41)","v":""},null,null,null,null,null,2,{"$f":"IF('COACHES WORKSHEET'!H50=0,\"\",'COACHES WORKSHEET'!H50)","v":""}]
[3,{"$f":"IF('COACHES WORKSHEET'!H33=0,\"\",'COACHES WORKSHEET'!H33)","v":""},null,null,null,null,null,3,{"$f":"IF('COACHES WORKSHEET'!H42=0,\"\",'COACHES WORKSHEET'!H42)","v":""},null,null,null,null,null,3,{"$f":"IF('COACHES WORKSHEET'!H51=0,\"\",'COACHES WORKSHEET'!H51)","v":""}]
[4,{"$f":"IF('COACHES WORKSHEET'!H34=0,\"\",'COACHES WORKSHEET'!H34)","v":""},null,null,null,null,null,4,{"$f":"IF('COACHES WORKSHEET'!H43=0,\"\",'COACHES WORKSHEET'!H43)","v":""},null,null,null,null,null,4,{"$f":"IF('COACHES WORKSHEET'!H52=0,\"\",'COACHES WORKSHEET'!H52)","v":""}]
[5,{"$f":"IF('COACHES WORKSHEET'!H35=0,\"\",'COACHES WORKSHEET'!H35)","v":""},null,null,null,null,null,5,{"$f":"IF('COACHES WORKSHEET'!H44=0,\"\",'COACHES WORKSHEET'!H44)","v":""},null,null,null,null,null,5,{"$f":"IF('COACHES WORKSHEET'!H53=0,\"\",'COACHES WORKSHEET'!H53)","v":""}]
["TOTAL PTS:",null,null,{"$f":"'ROSTER REVIEW'!Q8","v":0},null,null,null,"TOTAL PTS:",null,null,{"$f":"'ROSTER REVIEW'!Q9","v":0},null,null,null,"TOTAL PTS:",null,null,{"$f":"'ROSTER REVIEW'!Q10","v":0}]
[]
[null,null,null,null,null,null,"SCHOOL:  ",null,{"$f":"'COACHES WORKSHEET'!C1","v":"Enter School Here"}]
[]
["WT","       NAME",null,"RECORD",null,null,null,"WT","       NAME",null,"RECORD",null,null,null,"WT","       NAME",null,"RECORD"]
[{"$f":"'ROSTER REVIEW'!C11","v":""},{"$f":"'ROSTER REVIEW'!D11","v":""},null,{"$f":"'ROSTER REVIEW'!G11","v":0},"-",{"$f":"'ROSTER REVIEW'!I11","v":0},null,{"$f":"'ROSTER REVIEW'!C12","v":""},{"$f":"'ROSTER REVIEW'!D12","v":""},null,{"$f":"'ROSTER REVIEW'!G12","v":0},"-",{"$f":"'ROSTER REVIEW'!I12","v":0},null,{"$f":"'ROSTER REVIEW'!C13","v":""},{"$f":"'ROSTER REVIEW'!D13","v":""},null,{"$f":"'ROSTER REVIEW'!G13","v":0},"-",{"$f":"'ROSTER REVIEW'!I13","v":0}]
["POINTS FROM RECORD",null,null,null,null,{"$f":"'ROSTER REVIEW'!K11","v":"0"},null,"POINTS FROM RECORD",null,null,null,null,{"$f":"'ROSTER REVIEW'!K12","v":"0"},null,"POINTS FROM RECORD",null,null,null,null,{"$f":"'ROSTER REVIEW'!K13","v":"0"}]
[{"$f":"'COACHES WORKSHEET'!H57","v":"Did Not Place"},null,null,null,null,{"$f":"'ROSTER REVIEW'!L11","v":0},null,{"$f":"'COACHES WORKSHEET'!H66","v":"Did Not Place"},null,null,null,null,{"$f":"'ROSTER REVIEW'!L12","v":0},null,{"$f":"'COACHES WORKSHEET'!H75","v":"Did Not Place"},null,null,null,null,{"$f":"'ROSTER REVIEW'!L13","v":0}]
[{"$f":"'COACHES WORKSHEET'!J57","v":"NO WINS OVER SEC 6 PLACERS"},null,null,null,null,{"$f":"'COACHES WORKSHEET'!K57","v":0},null,{"$f":"'COACHES WORKSHEET'!J66","v":"NO WINS OVER SEC 6 PLACERS"},null,null,null,null,{"$f":"'COACHES WORKSHEET'!K66","v":0},null,{"$f":"'COACHES WORKSHEET'!J75","v":"NO WINS OVER SEC 6 PLACERS"},null,null,null,null,{"$f":"'COACHES WORKSHEET'!K75","v":0}]
[{"$f":"'COACHES WORKSHEET'!J58","v":"NO WINS OVER SEC 6 PLACERS"},null,null,null,null,{"$f":"'COACHES WORKSHEET'!K58","v":0},null,{"$f":"'COACHES WORKSHEET'!J67","v":"NO WINS OVER SEC 6 PLACERS"},null,null,null,null,{"$f":"'COACHES WORKSHEET'!K67","v":0},null,{"$f":"'COACHES WORKSHEET'!J76","v":"NO WINS OVER SEC 6 PLACERS"},null,null,null,null,{"$f":"'COACHES WORKSHEET'!K76","v":0}]
[{"$f":"'COACHES WORKSHEET'!J59","v":"NO WINS OVER SEC 6 PLACERS"},null,null,null,null,{"$f":"'COACHES WORKSHEET'!K59","v":0},null,{"$f":"'COACHES WORKSHEET'!J68","v":"NO WINS OVER SEC 6 PLACERS"},null,null,null,null,{"$f":"'COACHES WORKSHEET'!K68","v":0},null,{"$f":"'COACHES WORKSHEET'!J77","v":"NO WINS OVER SEC 6 PLACERS"},null,null,null,null,{"$f":"'COACHES WORKSHEET'!K77","v":0}]
[{"$f":"'COACHES WORKSHEET'!J60","v":"NO WINS OVER SEC 6 PLACERS"},null,null,null,null,{"$f":"'COACHES WORKSHEET'!K60","v":0},null,{"$f":"'COACHES WORKSHEET'!J69","v":"NO WINS OVER SEC 6 PLACERS"},null,null,null,null,{"$f":"'COACHES WORKSHEET'!K69","v":0},null,{"$f":"'COACHES WORKSHEET'!J78","v":"NO WINS OVER SEC 6 PLACERS"},null,null,null,null,{"$f":"'COACHES WORKSHEET'!K78","v":0}]
[{"$f":"'COACHES WORKSHEET'!J61","v":"NO WINS OVER SEC 6 PLACERS"},null,null,null,null,{"$f":"'COACHES WORKSHEET'!K61","v":0},null,{"$f":"'COACHES WORKSHEET'!J70","v":"NO WINS OVER SEC 6 PLACERS"},null,null,null,null,{"$f":"'COACHES WORKSHEET'!K70","v":0},null,{"$f":"'COACHES WORKSHEET'!J79","v":"NO WINS OVER SEC 6 PLACERS"},null,null,null,null,{"$f":"'COACHES WORKSHEET'!K79","v":0}]
[{"$f":"'COACHES WORKSHEET'!J62","v":"NO WINS OVER SEC 6 PLACERS"},null,null,null,null,{"$f":"'COACHES WORKSHEET'!K62","v":0},null,{"$f":"'COACHES WORKSHEET'!J71","v":"NO WINS OVER SEC 6 PLACERS"},null,null,null,null,{"$f":"'COACHES WORKSHEET'!K71","v":0},null,{"$f":"'COACHES WORKSHEET'!J80","v":"NO WINS OVER SEC 6 PLACERS"},null,null,null,null,{"$f":"'COACHES WORKSHEET'!K80","v":0}]
[{"$f":"'COACHES WORKSHEET'!J63","v":"NO WINS OVER SEC 6 PLACERS"},null,null,null,null,{"$f":"'COACHES WORKSHEET'!K63","v":0},null,{"$f":"'COACHES WORKSHEET'!J72","v":"NO WINS OVER SEC 6 PLACERS"},null,null,null,null,{"$f":"'COACHES WORKSHEET'!K72","v":0},null,{"$f":"'COACHES WORKSHEET'!J81","v":"NO WINS OVER SEC 6 PLACERS"},null,null,null,null,{"$f":"'COACHES WORKSHEET'!K81","v":0}]
[{"$f":"'COACHES WORKSHEET'!J64","v":"NO WINS OVER SEC 6 PLACERS"},null,null,null,null,{"$f":"'COACHES WORKSHEET'!K62","v":0},null,{"$f":"'COACHES WORKSHEET'!J73","v":"NO WINS OVER SEC 6 PLACERS"},null,null,null,null,{"$f":"'COACHES WORKSHEET'!K71","v":0},null,{"$f":"'COACHES WORKSHEET'!J82","v":"NO WINS OVER SEC 6 PLACERS"},null,null,null,null,{"$f":"'COACHES WORKSHEET'!K80","v":0}]
[{"$f":"'COACHES WORKSHEET'!L57","v":"NO WINS OVER STATE COMPETITION"},null,null,null,null,{"$f":"'COACHES WORKSHEET'!M57","v":0},null,{"$f":"'COACHES WORKSHEET'!L66","v":"NO WINS OVER STATE COMPETITION"},null,null,null,null,{"$f":"'COACHES WORKSHEET'!M66","v":0},null,{"$f":"'COACHES WORKSHEET'!L75","v":"NO WINS OVER STATE COMPETITION"},null,null,null,null,{"$f":"'COACHES WORKSHEET'!M75","v":0}]
[{"$f":"'COACHES WORKSHEET'!L58","v":"NO WINS OVER STATE COMPETITION"},null,null,null,null,{"$f":"'COACHES WORKSHEET'!M58","v":0},null,{"$f":"'COACHES WORKSHEET'!L67","v":"NO WINS OVER STATE COMPETITION"},null,null,null,null,{"$f":"'COACHES WORKSHEET'!M67","v":0},null,{"$f":"'COACHES WORKSHEET'!L76","v":"NO WINS OVER STATE COMPETITION"},null,null,null,null,{"$f":"'COACHES WORKSHEET'!M76","v":0}]
[{"$f":"'COACHES WORKSHEET'!L59","v":"NO WINS OVER STATE COMPETITION"},null,null,null,null,{"$f":"'COACHES WORKSHEET'!M59","v":0},null,{"$f":"'COACHES WORKSHEET'!L68","v":"NO WINS OVER STATE COMPETITION"},null,null,null,null,{"$f":"'COACHES WORKSHEET'!M68","v":0},null,{"$f":"'COACHES WORKSHEET'!L77","v":"NO WINS OVER STATE COMPETITION"},null,null,null,null,{"$f":"'COACHES WORKSHEET'!M77","v":0}]
[{"$f":"'COACHES WORKSHEET'!L60","v":"NO WINS OVER STATE COMPETITION"},null,null,null,null,{"$f":"'COACHES WORKSHEET'!M60","v":0},null,{"$f":"'COACHES WORKSHEET'!L69","v":"NO WINS OVER STATE COMPETITION"},null,null,null,null,{"$f":"'COACHES WORKSHEET'!M69","v":0},null,{"$f":"'COACHES WORKSHEET'!L78","v":"NO WINS OVER STATE COMPETITION"},null,null,null,null,{"$f":"'COACHES WORKSHEET'!M78","v":0}]
["Class Tournament Place Points",null,null,null,null,{"$f":"'COACHES WORKSHEET'!N57","v":0},null,"Class Tournament Place Points",null,null,null,null,{"$f":"'COACHES WORKSHEET'!N66","v":0},null,"Class Tournament Place Points",null,null,null,null,{"$f":"'COACHES WORKSHEET'!N75","v":0}]
["Class Tournament Bonus Points",null,null,null,null,{"$f":"'COACHES WORKSHEET'!O57","v":0},null,"Class Tournament Bonus Points",null,null,null,null,{"$f":"'COACHES WORKSHEET'!O66","v":0},null,"Class Tournament Bonus Points",null,null,null,null,{"$f":"'COACHES WORKSHEET'!O75","v":0}]
[null,"Head to Head Wins",null,null,null,null,null,null,"Head to Head Wins",null,null,null,null,null,null,"Head to Head Wins"]
[1,{"$f":"IF('COACHES WORKSHEET'!H58=0,\"\",'COACHES WORKSHEET'!H58)","v":""},null,null,null,null,null,1,{"$f":"IF('COACHES WORKSHEET'!H67=0,\"\",'COACHES WORKSHEET'!H67)","v":""},null,null,null,null,null,1,{"$f":"IF('COACHES WORKSHEET'!H76=0,\"\",'COACHES WORKSHEET'!H76)","v":""}]
[2,{"$f":"IF('COACHES WORKSHEET'!H59=0,\"\",'COACHES WORKSHEET'!H59)","v":""},null,null,null,null,null,2,{"$f":"IF('COACHES WORKSHEET'!H68=0,\"\",'COACHES WORKSHEET'!H68)","v":""},null,null,null,null,null,2,{"$f":"IF('COACHES WORKSHEET'!H77=0,\"\",'COACHES WORKSHEET'!H77)","v":""}]
[3,{"$f":"IF('COACHES WORKSHEET'!H60=0,\"\",'COACHES WORKSHEET'!H60)","v":""},null,null,null,null,null,3,{"$f":"IF('COACHES WORKSHEET'!H69=0,\"\",'COACHES WORKSHEET'!H69)","v":""},null,null,null,null,null,3,{"$f":"IF('COACHES WORKSHEET'!H78=0,\"\",'COACHES WORKSHEET'!H78)","v":""}]
[4,{"$f":"IF('COACHES WORKSHEET'!H61=0,\"\",'COACHES WORKSHEET'!H61)","v":""},null,null,null,null,null,4,{"$f":"IF('COACHES WORKSHEET'!H70=0,\"\",'COACHES WORKSHEET'!H70)","v":""},null,null,null,null,null,4,{"$f":"IF('COACHES WORKSHEET'!H79=0,\"\",'COACHES WORKSHEET'!H79)","v":""}]
[5,{"$f":"IF('COACHES WORKSHEET'!H62=0,\"\",'COACHES WORKSHEET'!H62)","v":""},null,null,null,null,null,5,{"$f":"IF('COACHES WORKSHEET'!H71=0,\"\",'COACHES WORKSHEET'!H71)","v":""},null,null,null,null,null,5,{"$f":"IF('COACHES WORKSHEET'!H80=0,\"\",'COACHES WORKSHEET'!H80)","v":""}]
["TOTAL PTS:",null,null,{"$f":"'ROSTER REVIEW'!Q11","v":0},null,null,null,"TOTAL PTS:",null,null,{"$f":"'ROSTER REVIEW'!Q12","v":0},null,null,null,"TOTAL PTS:",null,null,{"$f":"'ROSTER REVIEW'!Q13","v":0}]
[]
["WT","       NAME",null,"RECORD",null,null,null,"WT","       NAME",null,"RECORD",null,null,null,"WT","       NAME",null,"RECORD"]
[{"$f":"'ROSTER REVIEW'!C14","v":""},{"$f":"'ROSTER REVIEW'!D14","v":""},null,{"$f":"'ROSTER REVIEW'!G14","v":0},"-",{"$f":"'ROSTER REVIEW'!I14","v":0},null,{"$f":"'ROSTER REVIEW'!C15","v":""},{"$f":"'ROSTER REVIEW'!D15","v":""},null,{"$f":"'ROSTER REVIEW'!G15","v":0},"-",{"$f":"'ROSTER REVIEW'!I15","v":0},null,{"$f":"'ROSTER REVIEW'!C16","v":""},{"$f":"'ROSTER REVIEW'!D16","v":""},null,{"$f":"'ROSTER REVIEW'!G16","v":0},"-",{"$f":"'ROSTER REVIEW'!I16","v":0}]
["POINTS FROM RECORD",null,null,null,null,{"$f":"'ROSTER REVIEW'!K14","v":"0"},null,"POINTS FROM RECORD",null,null,null,null,{"$f":"'ROSTER REVIEW'!K15","v":"0"},null,"POINTS FROM RECORD",null,null,null,null,{"$f":"'ROSTER REVIEW'!K16","v":"0"}]
[{"$f":"'COACHES WORKSHEET'!H84","v":"Did Not Place"},null,null,null,null,{"$f":"'COACHES WORKSHEET'!I84","v":0},null,{"$f":"'COACHES WORKSHEET'!H93","v":"Did Not Place"},null,null,null,null,{"$f":"'ROSTER REVIEW'!L15","v":0},null,{"$f":"'COACHES WORKSHEET'!H102","v":"Did Not Place"},null,null,null,null,{"$f":"'ROSTER REVIEW'!L16","v":0}]
[{"$f":"'COACHES WORKSHEET'!J84","v":"NO WINS OVER SEC 6 PLACERS"},null,null,null,null,{"$f":"'COACHES WORKSHEET'!K84","v":0},null,{"$f":"'COACHES WORKSHEET'!J93","v":"NO WINS OVER SEC 6 PLACERS"},null,null,null,null,{"$f":"'COACHES WORKSHEET'!K93","v":0},null,{"$f":"'COACHES WORKSHEET'!J102","v":"NO WINS OVER SEC 6 PLACERS"},null,null,null,null,{"$f":"'COACHES WORKSHEET'!K102","v":0}]
[{"$f":"'COACHES WORKSHEET'!J85","v":"NO WINS OVER SEC 6 PLACERS"},null,null,null,null,{"$f":"'COACHES WORKSHEET'!K85","v":0},null,{"$f":"'COACHES WORKSHEET'!J94","v":"NO WINS OVER SEC 6 PLACERS"},null,null,null,null,{"$f":"'COACHES WORKSHEET'!K94","v":0},null,{"$f":"'COACHES WORKSHEET'!J103","v":"NO WINS OVER SEC 6 PLACERS"},null,null,null,null,{"$f":"'COACHES WORKSHEET'!K103","v":0}]
[{"$f":"'COACHES WORKSHEET'!J86","v":"NO WINS OVER SEC 6 PLACERS"},null,null,null,null,{"$f":"'COACHES WORKSHEET'!K86","v":0},null,{"$f":"'COACHES WORKSHEET'!J95","v":"NO WINS OVER SEC 6 PLACERS"},null,null,null,null,{"$f":"'COACHES WORKSHEET'!K95","v":0},null,{"$f":"'COACHES WORKSHEET'!J104","v":"NO WINS OVER SEC 6 PLACERS"},null,null,null,null,{"$f":"'COACHES WORKSHEET'!K104","v":0}]
[{"$f":"'COACHES WORKSHEET'!J87","v":"NO WINS OVER SEC 6 PLACERS"},null,null,null,null,{"$f":"'COACHES WORKSHEET'!K87","v":0},null,{"$f":"'COACHES WORKSHEET'!J96","v":"NO WINS OVER SEC 6 PLACERS"},null,null,null,null,{"$f":"'COACHES WORKSHEET'!K96","v":0},null,{"$f":"'COACHES WORKSHEET'!J105","v":"NO WINS OVER SEC 6 PLACERS"},null,null,null,null,{"$f":"'COACHES WORKSHEET'!K105","v":0}]
[{"$f":"'COACHES WORKSHEET'!J88","v":"NO WINS OVER SEC 6 PLACERS"},null,null,null,null,{"$f":"'COACHES WORKSHEET'!K88","v":0},null,{"$f":"'COACHES WORKSHEET'!J97","v":"NO WINS OVER SEC 6 PLACERS"},null,null,null,null,{"$f":"'COACHES WORKSHEET'!K97","v":0},null,{"$f":"'COACHES WORKSHEET'!J106","v":"NO WINS OVER SEC 6 PLACERS"},null,null,null,null,{"$f":"'COACHES WORKSHEET'!K106","v":0}]
[{"$f":"'COACHES WORKSHEET'!J89","v":"NO WINS OVER SEC 6 PLACERS"},null,null,null,null,{"$f":"'COACHES WORKSHEET'!K89","v":0},null,{"$f":"'COACHES WORKSHEET'!J98","v":"NO WINS OVER SEC 6 PLACERS"},null,null,null,null,{"$f":"'COACHES WORKSHEET'!K98","v":0},null,{"$f":"'COACHES WORKSHEET'!J107","v":"NO WINS OVER SEC 6 PLACERS"},null,null,null,null,{"$f":"'COACHES WORKSHEET'!K107","v":0}]
[{"$f":"'COACHES WORKSHEET'!J90","v":"NO WINS OVER SEC 6 PLACERS"},null,null,null,null,{"$f":"'COACHES WORKSHEET'!K90","v":0},null,{"$f":"'COACHES WORKSHEET'!J99","v":"NO WINS OVER SEC 6 PLACERS"},null,null,null,null,{"$f":"'COACHES WORKSHEET'!K99","v":0},null,{"$f":"'COACHES WORKSHEET'!J108","v":"NO WINS OVER SEC 6 PLACERS"},null,null,null,null,{"$f":"'COACHES WORKSHEET'!K108","v":0}]
[{"$f":"'COACHES WORKSHEET'!J91","v":"NO WINS OVER SEC 6 PLACERS"},null,null,null,null,{"$f":"'COACHES WORKSHEET'!K91","v":0},null,{"$f":"'COACHES WORKSHEET'!J100","v":"NO WINS OVER SEC 6 PLACERS"},null,null,null,null,{"$f":"'COACHES WORKSHEET'!K100","v":0},null,{"$f":"'COACHES WORKSHEET'!J109","v":"NO WINS OVER SEC 6 PLACERS"},null,null,null,null,{"$f":"'COACHES WORKSHEET'!K109","v":0}]
[{"$f":"'COACHES WORKSHEET'!L84","v":"NO WINS OVER STATE COMPETITION"},null,null,null,null,{"$f":"'COACHES WORKSHEET'!M84","v":0},null,{"$f":"'COACHES WORKSHEET'!L93","v":"NO WINS OVER STATE COMPETITION"},null,null,null,null,{"$f":"'COACHES WORKSHEET'!M93","v":0},null,{"$f":"'COACHES WORKSHEET'!L102","v":"NO WINS OVER STATE COMPETITION"},null,null,null,null,{"$f":"'COACHES WORKSHEET'!M102","v":0}]
[{"$f":"'COACHES WORKSHEET'!L85","v":"NO WINS OVER STATE COMPETITION"},null,null,null,null,{"$f":"'COACHES WORKSHEET'!M85","v":0},null,{"$f":"'COACHES WORKSHEET'!L94","v":"NO WINS OVER STATE COMPETITION"},null,null,null,null,{"$f":"'COACHES WORKSHEET'!M94","v":0},null,{"$f":"'COACHES WORKSHEET'!L103","v":"NO WINS OVER STATE COMPETITION"},null,null,null,null,{"$f":"'COACHES WORKSHEET'!M103","v":0}]
[{"$f":"'COACHES WORKSHEET'!L86","v":"NO WINS OVER STATE COMPETITION"},null,null,null,null,{"$f":"'COACHES WORKSHEET'!M86","v":0},null,{"$f":"'COACHES WORKSHEET'!L95","v":"NO WINS OVER STATE COMPETITION"},null,null,null,null,{"$f":"'COACHES WORKSHEET'!M95","v":0},null,{"$f":"'COACHES WORKSHEET'!L104","v":"NO WINS OVER STATE COMPETITION"},null,null,null,null,{"$f":"'COACHES WORKSHEET'!M104","v":0}]
[{"$f":"'COACHES WORKSHEET'!L87","v":"NO WINS OVER STATE COMPETITION"},null,null,null,null,{"$f":"'COACHES WORKSHEET'!M87","v":0},null,{"$f":"'COACHES WORKSHEET'!L96","v":"NO WINS OVER STATE COMPETITION"},null,null,null,null,{"$f":"'COACHES WORKSHEET'!M96","v":0},null,{"$f":"'COACHES WORKSHEET'!L105","v":"NO WINS OVER STATE COMPETITION"},null,null,null,null,{"$f":"'COACHES WORKSHEET'!M105","v":0}]
["Class Tournament Place Points",null,null,null,null,{"$f":"'COACHES WORKSHEET'!N84","v":0},null,"Class Tournament Place Points",null,null,null,null,{"$f":"'COACHES WORKSHEET'!N93","v":0},null,"Class Tournament Place Points",null,null,null,null,{"$f":"'COACHES WORKSHEET'!N102","v":0}]
["Class Tournament Bonus Points",null,null,null,null,{"$f":"'COACHES WORKSHEET'!O84","v":0},null,"Class Tournament Bonus Points",null,null,null,null,{"$f":"'COACHES WORKSHEET'!O93","v":0},null,"Class Tournament Bonus Points",null,null,null,null,{"$f":"'COACHES WORKSHEET'!O102","v":0}]
[null,"Head to Head Wins",null,null,null,null,null,null,"Head to Head Wins",null,null,null,null,null,null,"Head to Head Wins"]
[1,{"$f":"IF('COACHES WORKSHEET'!H85=0,\"\",'COACHES WORKSHEET'!H85)","v":""},null,null,null,null,null,1,{"$f":"IF('COACHES WORKSHEET'!H94=0,\"\",'COACHES WORKSHEET'!H94)","v":""},null,null,null,null,null,1,{"$f":"IF('COACHES WORKSHEET'!H103=0,\"\",'COACHES WORKSHEET'!H103)","v":""}]
[2,{"$f":"IF('COACHES WORKSHEET'!H86=0,\"\",'COACHES WORKSHEET'!H86)","v":""},null,null,null,null,null,2,{"$f":"IF('COACHES WORKSHEET'!H95=0,\"\",'COACHES WORKSHEET'!H95)","v":""},null,null,null,null,null,2,{"$f":"IF('COACHES WORKSHEET'!H104=0,\"\",'COACHES WORKSHEET'!H104)","v":""}]
[3,{"$f":"IF('COACHES WORKSHEET'!H87=0,\"\",'COACHES WORKSHEET'!H87)","v":""},null,null,null,null,null,3,{"$f":"IF('COACHES WORKSHEET'!H96=0,\"\",'COACHES WORKSHEET'!H96)","v":""},null,null,null,null,null,3,{"$f":"IF('COACHES WORKSHEET'!H105=0,\"\",'COACHES WORKSHEET'!H105)","v":""}]
[4,{"$f":"IF('COACHES WORKSHEET'!H88=0,\"\",'COACHES WORKSHEET'!H88)","v":""},null,null,null,null,null,4,{"$f":"IF('COACHES WORKSHEET'!H97=0,\"\",'COACHES WORKSHEET'!H97)","v":""},null,null,null,null,null,4,{"$f":"IF('COACHES WORKSHEET'!H106=0,\"\",'COACHES WORKSHEET'!H106)","v":""}]
[5,{"$f":"IF('COACHES WORKSHEET'!H89=0,\"\",'COACHES WORKSHEET'!H89)","v":""},null,null,null,null,null,5,{"$f":"IF('COACHES WORKSHEET'!H98=0,\"\",'COACHES WORKSHEET'!H98)","v":""},null,null,null,null,null,5,{"$f":"IF('COACHES WORKSHEET'!H107=0,\"\",'COACHES WORKSHEET'!H107)","v":""}]
["TOTAL PTS:",null,null,{"$f":"'ROSTER REVIEW'!Q14","v":0},null,null,null,"TOTAL PTS:",null,null,{"$f":"'ROSTER REVIEW'!Q15","v":0},null,null,null,"TOTAL PTS:",null,null,{"$f":"'ROSTER REVIEW'!Q16","v":0}]
[]
[]
[]
[null,null,null,null,null,null,"SCHOOL:  ",null,{"$f":"'COACHES WORKSHEET'!C1","v":"Enter School Here"}]
[]
["WT","       NAME",null,"RECORD"]
[{"$f":"'ROSTER REVIEW'!C17","v":""},{"$f":"'ROSTER REVIEW'!D17","v":""},null,{"$f":"'ROSTER REVIEW'!G17","v":0},"-",{"$f":"'ROSTER REVIEW'!I17","v":0}]
["POINTS FROM RECORD",null,null,null,null,{"$f":"'ROSTER REVIEW'!K17","v":"0"}]
[{"$f":"'COACHES WORKSHEET'!H111","v":"Did Not Place"},null,null,null,null,{"$f":"'COACHES WORKSHEET'!I111","v":0}]
[{"$f":"'COACHES WORKSHEET'!J111","v":"NO WINS OVER SEC 6 PLACERS"},null,null,null,null,{"$f":"'COACHES WORKSHEET'!K111","v":0}]
[{"$f":"'COACHES WORKSHEET'!J112","v":"NO WINS OVER SEC 6 PLACERS"},null,null,null,null,{"$f":"'COACHES WORKSHEET'!K112","v":0}]
[{"$f":"'COACHES WORKSHEET'!J113","v":"NO WINS OVER SEC 6 PLACERS"},null,null,null,null,{"$f":"'COACHES WORKSHEET'!K113","v":0}]
[{"$f":"'COACHES WORKSHEET'!J114","v":"NO WINS OVER SEC 6 PLACERS"},null,null,null,null,{"$f":"'COACHES WORKSHEET'!K114","v":0}]
[{"$f":"'COACHES WORKSHEET'!J115","v":"NO WINS OVER SEC 6 PLACERS"},null,null,null,null,{"$f":"'COACHES WORKSHEET'!K115","v":0}]
[{"$f":"'COACHES WORKSHEET'!J116","v":"NO WINS OVER SEC 6 PLACERS"},null,null,null,null,{"$f":"'COACHES WORKSHEET'!K116","v":0}]
[{"$f":"'COACHES WORKSHEET'!J117","v":"NO WINS OVER SEC 6 PLACERS"},null,null,null,null,{"$f":"'COACHES WORKSHEET'!K117","v":0}]
[{"$f":"'COACHES WORKSHEET'!J118","v":"NO WINS OVER SEC 6 PLACERS"},null,null,null,null,{"$f":"'COACHES WORKSHEET'!K118","v":0}]
[{"$f":"'COACHES WORKSHEET'!L111","v":"NO WINS OVER STATE COMPETITION"},null,null,null,null,{"$f":"'COACHES WORKSHEET'!M111","v":0}]
[{"$f":"'COACHES WORKSHEET'!L112","v":"NO WINS OVER STATE COMPETITION"},null,null,null,null,{"$f":"'COACHES WORKSHEET'!M112","v":0}]
[{"$f":"'COACHES WORKSHEET'!L113","v":"NO WINS OVER STATE COMPETITION"},null,null,null,null,{"$f":"'COACHES WORKSHEET'!M113","v":0}]
[{"$f":"'COACHES WORKSHEET'!L114","v":"NO WINS OVER STATE COMPETITION"},null,null,null,null,{"$f":"'COACHES WORKSHEET'!M114","v":0}]
["Class Tournament Place Points",null,null,null,null,{"$f":"'COACHES WORKSHEET'!N111","v":0}]
["Class Tournament Bonus Points",null,null,null,null,{"$f":"'COACHES WORKSHEET'!O111","v":0}]
[null,"Head to Head Wins"]
[1,{"$f":"IF('COACHES WORKSHEET'!H112=0,\"\",'COACHES WORKSHEET'!H112)","v":""}]
[2,{"$f":"IF('COACHES WORKSHEET'!H113=0,\"\",'COACHES WORKSHEET'!H113)","v":""}]
[3,{"$f":"IF('COACHES WORKSHEET'!H114=0,\"\",'COACHES WORKSHEET'!H114)","v":""}]
[4,{"$f":"IF('COACHES WORKSHEET'!H115=0,\"\",'COACHES WORKSHEET'!H115)","v":""}]
[5,{"$f":"IF('COACHES WORKSHEET'!H116=0,\"\",'COACHES WORKSHEET'!H116)","v":""}]
["TOTAL PTS:",null,null,{"$f":"'ROSTER REVIEW'!Q17","v":0}]

{"sheet":"Sec 6 Place Finishers 2020-21","index":4,"n_rows":145,"n_cols":11,"rows_kept":145,"cut":false,"hidden":false,"merged":[]}
[null,null,null,null,null,"2012-13","2020-21","2012-13"," Sec. 6 SEEDING"," Sec. 6 SEEDING"]
["NAME","SCHOOL","DIVISION","2020-21 GRADE","WT","Class Place Finish","SECTION PLACE","NYS PLACE ","  COMPETITION PTS","  PLACEMENT PTS *","NYS Place finish 2019"]
["CLICK ON THIS CELL",null,null,null,null,null,null,null,0]
["NO WINS OVER SEC 6 PLACERS",null,null,null,null,null,null,null,0]
["Amilcar Morales - ALB","ALBION",2,12,138,null,4,null,6]
["Alex Hafner - ALB","ALBION",2,12,152,null,5,null,4]
["Payton Mack - AMH","AMHERST",1,11,102,null,3,null,8]
["Quinlan Lyle - AMH","AMHERST",1,9,110,null,7,null,1]
["Mark Testa - AMH","AMHERST",1,12,132,null,8,null,1]
["Giovanni Russo - AMH","AMHERST",1,12,145,null,5,null,4]
["Jake LeClerc - AMH","AMHERST",1,12,160,null,4,null,6]
["Jordan Joslyn - CHAUT","CHAUTAUQUA LAKE",2,10,110,null,2,null,10]
["Martin Ohlsson - CHAUT","CHAUTAUQUA LAKE",2,11,126,null,4,null,22,null,5]
["Jack Bourgeois - CHAUT","CHAUTAUQUA LAKE",2,11,132,null,8,null,1]
["Jayden Malecki - CHAUT","CHAUTAUQUA LAKE",2,10,138,null,7,null,1]
["John Watson - CHAUT","CHAUTAUQUA LAKE",2,10,172,null,6,null,3]
["Matthew Cox - CLAR","CLARENCE",1,8,102,null,6,null,3]
["AJ Didas - CLAR","CLARENCE",1,9,118,null,4,null,6]
["Brandon Heh - CLAR","CLARENCE",1,12,126,null,7,null,1]
["Anthany Dagostino - CLAR","CLARENCE",1,12,132,null,7,null,1]
["Jefferson Long - CLAR","CLARENCE",1,9,145,null,2,null,10]
["Ben Feltz - CLAR","CLARENCE",1,12,152,null,6,null,3]
["Andrew Le - CLAR","CLARENCE",1,12,152,null,8,null,1]
["Jax Schoenthal - EAH","EAST AURORA HOLL",2,11,132,null,7,null,1]
["Nolan Skowronski - EAH","EAST AURORA HOLL",2,12,106,null,5,null,4]
["Travor DellaPenta - EDEN","EDEN",2,8,102,null,2,null,10]
["Bryce DellaPenta - EDEN","EDEN",2,8,102,null,5,null,4]
["Johnny Vicario - EDEN","EDEN",2,12,126,null,2,null,10]
["Shane Walczyk - EDEN","EDEN",2,12,145,null,1,null,12]
["Connor Gleason - EDEN","EDEN",2,12,145,null,7,null,1]
["Karsen Lundgren - FALC","FALCONER",2,11,110,null,6,null,3]
["Vinnie Bloomberg - FALC","FALCONER",2,12,126,null,8,null,1]
["Austin Chase - FALC","FALCONER",2,11,132,null,3,null,8]
["Jacob Clark - FALC","FALCONER",2,11,138,null,3,null,8]
["Dalton Caldwell - FALC","FALCONER",2,11,145,null,5,null,4]
["Brodie Little - FALC","FALCONER",2,11,152,null,7,null,1]
["Bryant Morrison - FALC","FALCONER",2,11,160,null,7,null,1]
["Devyn Morrison - FALC","FALCONER",2,10,215,null,5,null,4]
["Dalton Wolcott - FRED","FREDONIA",2,10,152,null,8,null,1]
["Hunter Larson - FRED","FREDONIA",2,12,172,null,4,null,6]
["Dawson Russo - FRED","FREDONIA",2,11,172,null,8,null,1]
["Russell Steward - FREWS","FREWSBURG",2,11,138,null,8,null,1]
["Jamison Caldwell - FREWS","FREWSBURG",2,9,215,null,6,null,3]
["Cullen Edwards - FRONT","FRONTIER",1,8,102,null,5,null,4]
["Travis Browning - FRONT","FRONTIER",1,12,118,null,2,null,16,null,7]
["Nick Baco - FRONT","FRONTIER",1,12,215,null,5,null,4]
["Konrad Krzyszton - FRONT","FRONTIER",1,12,285,null,3,null,8]
["Drew Mascio - FRONT","FRONTIER",1,12,285,null,7,null,1]
["Mike Ball - GOW","GOWANDA",2,10,102,null,3,null,8]
["Nik Massaro - GI","GRAND ISLAND",1,10,118,null,7,null,1]
["Brian Bielic - GI","GRAND ISLAND",1,12,172,null,1,null,12]
["Ken Schmitz - HAM","HAMBURG",1,11,102,null,1,null,12]
["Jeff Leavell - HAM","HAMBURG",1,11,189,null,7,null,1]
["Connor VanDusen - HAM","HAMBURG",1,12,215,null,8,null,1]
["Peter Gaglio - IRQ","IROQUOIS",2,12,118,null,4,null,6]
["Michael Schiffhauer - IRQ","IROQUOIS",2,12,126,null,1,null,16,null,7]
["Ethan Pfeiffer - IRQ","IROQUOIS",2,12,145,null,8,null,1]
["Ryan Sweeney - IRQ","IROQUOIS",2,12,132,null,1,null,12]
["Brenden Dargavel - IRQ","IROQUOIS",2,12,285,null,6,null,3]
["Connor Bush - JAMES","JAMESTOWN",1,10,102,null,8,null,1]
["Aidan Senear - JAMES","JAMESTOWN",1,10,110,null,6,null,3]
["Gavin Stevens - KENTON","KENTON",1,10,110,null,5,null,4]
["Sawyer Dickinson - KENTON","KENTON",1,8,118,null,8,null,1]
["Barakat Sahi - KENTON","KENTON",1,12,145,null,7,null,1]
["Connor Grohman - KENTON","KENTON",1,12,215,null,3,null,8]
["Ibrahim Alberri - LACK","LACKAWANNA",2,12,138,null,6,null,3]
["Blake Hageman - LAKE","LAKE SHORE",2,11,118,null,6,null,3]
["Myles Gronowski - LANC","LANCASTER",1,12,126,null,3,null,8]
["Carter Tadusz - LANC","LANCASTER",1,11,138,null,2,null,10]
["Ethan Monin - LANC","LANCASTER",1,12,145,null,3,null,8]
["Michael Schaefer - LANC","LANCASTER",1,10,152,null,2,null,10]
["Kaleb Schurkus - LANC","LANCASTER",1,12,120,null,5,null,4]
["Evan Stencel - LANC","LANCASTER",1,11,172,null,4,null,6]
["Caden Barrientos - LEW","LEW PORT",2,10,110,null,4,null,6]
["James Marshall - LEW","LEW PORT",2,11,189,null,2,null,10]
["Jaron Barrientos - LEW","LEW-PORT",2,9,102,null,6,null,3]
["Maleah McKinney-Updegraph - LOCK","LOCKPORT",1,11,110,null,8,null,1]
["Kevin Daskavitz - LOCK","LOCKPORT",1,12,182,null,2,null,10]
["Stefaan Fearon - LOCK","LOCKPORT",1,12,285,null,1,null,12]
["Mason Kraft - MAPLE","MAPLE GROVE",2,10,126,null,7,null,1]
["Lucas Tomlinson - MAPLE","MAPLE GROVE",2,12,138,null,2,null,10]
["Dominick Callara - MED","MEDINA",2,11,102,null,1,null,12]
["RaShawn Bloom - MED","MEDINA",2,12,118,null,5,null,4]
["Noah Skinner - MED","MEDINA",2,11,215,null,7,null,1]
["Ayden Buttery - NEW","NEWFANE",2,9,110,null,3,null,8]
["Aiden Gillings - NEW","NEWFANE",2,9,118,null,2,null,26,null,4]
["Adam Huntington - NEW","NEWFANE",2,12,126,null,6,null,3]
["Simon Lingle - NEW","NEWFANE",2,12,215,null,3,null,8]
["Charles Larose - NEW","NEWFANE",2,12,285,null,1,null,12]
["Eian Peterson - NF","NIAGARA FALLS",1,9,102,null,7,null,1]
["Jaden Crumpler - NF","NIAGARA FALLS",1,11,110,null,1,null,12]
["Ja'Shad Bumpers - NF","NIAGARA FALLS",1,12,110,null,3,null,8]
["Amarfio Reynolds - NF","NIAGARA FALLS",1,11,118,null,1,null,12]
["Mike Syposs - NF","NIAGARA FALLS",1,11,126,null,5,null,4]
["Grady Peterson - NF","NIAGARA FALLS",1,11,132,null,4,null,6]
["Darren Christian - NF","NIAGARA FALLS",1,12,138,null,5,null,4]
["Jesiere Carter - NF","NIAGARA FALLS",1,12,152,null,1,null,12]
["Max Hill - NF","NIAGARA FALLS",1,12,160,null,7,null,1]
["Chase Richards - NW","NIAGARA WHEATFIELD",1,8,102,null,4,null,6]
["Tremell Mathews - NW","NIAGARA WHEATFIELD",1,11,126,null,1,null,12]
["Joseph Cicco - NW","NIAGARA WHEATFIELD",1,10,132,null,5,null,4]
["Te'Shaun Mathews - NW","NIAGARA WHEATFIELD",1,10,138,null,3,null,8]
["Andre Clause - NW","NIAGARA WHEATFIELD",1,12,285,null,3,null,8]
["Collin Coughenour - NW","NIAGARA WHEATFIELD",1,11,145,null,1,null,12]
["Anthony Lang - NW","NIAGARA WHEATFIELD",1,10,152,null,7,null,1]
["Casey Robinson - NW","NIAGARA WHEATFIELD",1,11,215,null,7,null,1]
["Trevon Mathews - NW","NIAGARA WHEATFIELD",1,12,285,null,6,null,3]
["Dylan Gagnon - NT","NORTH TONAWANDA",1,10,126,null,8,null,1]
["Simon Griskonis - NT","NORTH TONAWANDA",1,12,160,null,5,null,4]
["Joseph Pasiak - NT","NORTH TONAWANDA",1,12,172,null,8,null,1]
["Devin Kayes - OLEAN","OLEAN",2,12,285,null,8,null,1]
["Gavin Gocella - OP","ORCHARD PARK",1,12,145,null,8,null,1]
["Jason Storms - OP","ORCHARD PARK",1,12,160,null,6,null,3]
["Jack MacDonald - OP","ORCHARD PARK",1,10,189,null,5,null,4]
["Ben Ciesielski - OP","ORCHARD PARK",1,12,285,null,8,null,1]
["Brady Heckathorn - PIO","PION",2,11,152,null,2,null,10]
["Daniel Kirsch - PION","PIONEER",2,12,118,null,1,null,26,null,4]
["Xander Kirsch - PION","PIONEER",2,11,126,null,5,null,4]
["Donald Bennett - PIO","PIONEER",2,12,160,null,3,null,8]
["Dakota Mascho - PORT","PORTVILLE",2,12,160,null,1,null,22,null,5]
["Dominick Clark - RAND","RANDOLPH",2,9,118,null,7,null,1]
["Caden Inkley - RAND","RANDOLPH",2,9,118,null,8,null,1]
["Joe Nottingham - RAND","RANDOLPH",2,11,132,null,6,null,3]
["Joe Jopp - ROY","ROY HART",2,9,102,null,8,null,1]
["Brett Ricker - ROY","ROY HART ",2,12,160,null,4,null,6]
["Zack Hill - ROY","ROY HART ",2,12,189,null,5,null,4]
["Konner Spring - SAL","SALAMANCA",2,11,132,null,4,null,6]
["Carmine Calimeri - SOUTH","SOUTHWESTERN",2,8,102,null,4,null,6]
["Aiden Morris - SPRING","SPRINGVILLE",2,9,110,null,5,null,4]
["Nick Brown - SPRING","SPRINGVILLE",2,12,160,null,2,null,10]
["James Leuer Jr. - STAR","STARPOINT",1,11,102,null,2,null,10]
["Zachary Caldwell - STAR","STARPOINT",1,8,110,null,4,null,6]
["Griffin LaPlante - STAR","STARPOINT",1,8,126,null,2,null,10]
["Gage LaPlante - STAR","STARPOINT",1,10,132,null,2,null,10]
["Christopher Uptegrove - STAR","STARPOINT",1,11,132,null,3,null,8]
["Peyton Lyness - STAR","STARPOINT",1,12,145,null,6,null,3]
["Thomas Browne - STAR","STARPOINT",1,12,172,null,6,null,3]
["Landon Grainy -STAR","STARPOINT",1,11,172,null,7,null,1]
["Matt Caldwell - STAR","STARPOINT",1,11,215,null,4,null,6]
["Zach Dellinger - WILL NE","WILLIAMSVILLE N/E",1,12,118,null,5,null,4]
["Cameron Catrabone - WILL NE","WILLIAMSVILLE NE",1,10,132,null,1,null,18,null,6]
["Matthew McKenna - WILL NE","WILLIAMSVILLE NE",1,10,215,null,6,null,3]
["Treyden Saxer - WILL SO","WILLIAMSVILLE SOUTH",1,10,138,null,7,null,1]
["Brad Evelt - WILL SO","WILLIAMSVILLE SOUTH",1,12,152,null,5,null,4]
["Carson Alberti - W.Sen W/W","WEST SENENCA WEST / EAST",1,12,120,null,1,null,22,null,5]

{"sheet":"Class Tournament info","index":5,"n_rows":18,"n_cols":13,"rows_kept":18,"cut":false,"hidden":true,"merged":[]}
[null,null,null,null,null,"       Record",null,null,"       Place Finishes",null,null," "]
[null,null,null,null,"       Sect. 6",null,"     Overall",null,"NYS","S6","Class","    Win Percentage"]
["WT.","Name","Gr","School","W","L","W","L","2014","2014","2014","S6 %","%"]
[{"$f":"IF('COACHES WORKSHEET'!B3=0,\"\",'COACHES WORKSHEET'!B3)","v":""},{"$f":"IF('COACHES WORKSHEET'!C3=0,\"\",'COACHES WORKSHEET'!C3)","v":""},{"$f":"IF('COACHES WORKSHEET'!D3=0,\"\",'COACHES WORKSHEET'!D3)","v":""},{"$f":"'COACHES WORKSHEET'!C1","v":"Enter School Here"},null,null,{"$f":"'COACHES WORKSHEET'!E3","v":0},{"$f":"'COACHES WORKSHEET'!F3","v":0},null,null,null,{"$f":"IF(E4=0,\"\",E4/(E4+F4))","v":""},{"$f":"IF(G4=0,\"\",G4/(G4+H4))","v":""}]
[{"$f":"IF('COACHES WORKSHEET'!B12=0,\"\",'COACHES WORKSHEET'!B12)","v":""},{"$f":"IF('COACHES WORKSHEET'!C12=0,\"\",'COACHES WORKSHEET'!C12)","v":""},{"$f":"IF('COACHES WORKSHEET'!D12=0,\"\",'COACHES WORKSHEET'!D12)","v":""},{"$f":"'COACHES WORKSHEET'!C1","v":"Enter School Here"},null,null,{"$f":"'COACHES WORKSHEET'!E12","v":0},{"$f":"'COACHES WORKSHEET'!F12","v":0},null,null,null,{"$f":"IF(E5=0,\"\",E5/(E5+F5))","v":""},{"$f":"IF(G5=0,\"\",G5/(G5+H5))","v":""}]
[{"$f":"IF('COACHES WORKSHEET'!B21=0,\"\",'COACHES WORKSHEET'!B21)","v":""},{"$f":"IF('COACHES WORKSHEET'!C21=0,\"\",'COACHES WORKSHEET'!C21)","v":""},{"$f":"IF('COACHES WORKSHEET'!D21=0,\"\",'COACHES WORKSHEET'!D21)","v":""},{"$f":"'COACHES WORKSHEET'!C1","v":"Enter School Here"},null,null,{"$f":"'COACHES WORKSHEET'!E21","v":0},{"$f":"'COACHES WORKSHEET'!F21","v":0},null,null,null,"",""]
[{"$f":"IF('COACHES WORKSHEET'!B30=0,\"\",'COACHES WORKSHEET'!B30)","v":""},{"$f":"IF('COACHES WORKSHEET'!C30=0,\"\",'COACHES WORKSHEET'!C30)","v":""},{"$f":"IF('COACHES WORKSHEET'!D30=0,\"\",'COACHES WORKSHEET'!D30)","v":""},{"$f":"'COACHES WORKSHEET'!C1","v":"Enter School Here"},null,null,{"$f":"'COACHES WORKSHEET'!E30","v":0},{"$f":"'COACHES WORKSHEET'!F30","v":0},null,null,null,"",""]
[{"$f":"IF('COACHES WORKSHEET'!B39=0,\"\",'COACHES WORKSHEET'!B39)","v":""},{"$f":"IF('COACHES WORKSHEET'!C39=0,\"\",'COACHES WORKSHEET'!C39)","v":""},{"$f":"IF('COACHES WORKSHEET'!D39=0,\"\",'COACHES WORKSHEET'!D39)","v":""},{"$f":"'COACHES WORKSHEET'!C1","v":"Enter School Here"},null,null,{"$f":"'COACHES WORKSHEET'!E39","v":0},{"$f":"'COACHES WORKSHEET'!F39","v":0},null,null,null,"",""]
[{"$f":"IF('COACHES WORKSHEET'!B48=0,\"\",'COACHES WORKSHEET'!B48)","v":""},{"$f":"IF('COACHES WORKSHEET'!C48=0,\"\",'COACHES WORKSHEET'!C48)","v":""},{"$f":"IF('COACHES WORKSHEET'!D48=0,\"\",'COACHES WORKSHEET'!D48)","v":""},{"$f":"'COACHES WORKSHEET'!C1","v":"Enter School Here"},null,null,{"$f":"'COACHES WORKSHEET'!E48","v":0},{"$f":"'COACHES WORKSHEET'!F48","v":0},null,null,null,"",""]
[{"$f":"IF('COACHES WORKSHEET'!B57=0,\"\",'COACHES WORKSHEET'!B57)","v":""},{"$f":"IF('COACHES WORKSHEET'!C57=0,\"\",'COACHES WORKSHEET'!C57)","v":""},{"$f":"IF('COACHES WORKSHEET'!D57=0,\"\",'COACHES WORKSHEET'!D57)","v":""},{"$f":"'COACHES WORKSHEET'!C1","v":"Enter School Here"},null,null,{"$f":"'COACHES WORKSHEET'!E57","v":0},{"$f":"'COACHES WORKSHEET'!F57","v":0},null,null,null,"",""]
[{"$f":"IF('COACHES WORKSHEET'!B66=0,\"\",'COACHES WORKSHEET'!B66)","v":""},{"$f":"IF('COACHES WORKSHEET'!C66=0,\"\",'COACHES WORKSHEET'!C66)","v":""},{"$f":"IF('COACHES WORKSHEET'!D66=0,\"\",'COACHES WORKSHEET'!D66)","v":""},{"$f":"'COACHES WORKSHEET'!C1","v":"Enter School Here"},null,null,{"$f":"'COACHES WORKSHEET'!E66","v":0},{"$f":"'COACHES WORKSHEET'!F66","v":0},null,null,null,"",""]
[{"$f":"IF('COACHES WORKSHEET'!B75=0,\"\",'COACHES WORKSHEET'!B75)","v":""},{"$f":"IF('COACHES WORKSHEET'!C75=0,\"\",'COACHES WORKSHEET'!C75)","v":""},{"$f":"IF('COACHES WORKSHEET'!D75=0,\"\",'COACHES WORKSHEET'!D75)","v":""},{"$f":"'COACHES WORKSHEET'!C1","v":"Enter School Here"},null,null,{"$f":"'COACHES WORKSHEET'!E75","v":0},{"$f":"'COACHES WORKSHEET'!F75","v":0},null,null,null,"",""]
[{"$f":"IF('COACHES WORKSHEET'!B84=0,\"\",'COACHES WORKSHEET'!B84)","v":""},{"$f":"IF('COACHES WORKSHEET'!C84=0,\"\",'COACHES WORKSHEET'!C84)","v":""},{"$f":"IF('COACHES WORKSHEET'!D84=0,\"\",'COACHES WORKSHEET'!D84)","v":""},{"$f":"'COACHES WORKSHEET'!C1","v":"Enter School Here"},null,null,{"$f":"'COACHES WORKSHEET'!E84","v":0},{"$f":"'COACHES WORKSHEET'!F84","v":0},null,null,null,"",""]
[{"$f":"IF('COACHES WORKSHEET'!B93=0,\"\",'COACHES WORKSHEET'!B93)","v":""},{"$f":"IF('COACHES WORKSHEET'!C93=0,\"\",'COACHES WORKSHEET'!C93)","v":""},{"$f":"IF('COACHES WORKSHEET'!D93=0,\"\",'COACHES WORKSHEET'!D93)","v":""},{"$f":"'COACHES WORKSHEET'!C1","v":"Enter School Here"},null,null,{"$f":"'COACHES WORKSHEET'!E93","v":0},{"$f":"'COACHES WORKSHEET'!F93","v":0},null,null,null,"",""]
[{"$f":"IF('COACHES WORKSHEET'!B102=0,\"\",'COACHES WORKSHEET'!B102)","v":""},{"$f":"IF('COACHES WORKSHEET'!C102=0,\"\",'COACHES WORKSHEET'!C102)","v":""},{"$f":"IF('COACHES WORKSHEET'!D102=0,\"\",'COACHES WORKSHEET'!D102)","v":""},{"$f":"'COACHES WORKSHEET'!C1","v":"Enter School Here"},null,null,{"$f":"'COACHES WORKSHEET'!E102","v":0},{"$f":"'COACHES WORKSHEET'!F102","v":0},null,null,null,"",""]
[{"$f":"IF('COACHES WORKSHEET'!B111=0,\"\",'COACHES WORKSHEET'!B111)","v":""},{"$f":"IF('COACHES WORKSHEET'!C111=0,\"\",'COACHES WORKSHEET'!C111)","v":""},{"$f":"IF('COACHES WORKSHEET'!D111=0,\"\",'COACHES WORKSHEET'!D111)","v":""},{"$f":"'COACHES WORKSHEET'!C1","v":"Enter School Here"},null,null,{"$f":"'COACHES WORKSHEET'!E111","v":0},{"$f":"'COACHES WORKSHEET'!F111","v":0},null,null,null,"",""]
[{"$f":"IF('COACHES WORKSHEET'!B120=0,\"\",'COACHES WORKSHEET'!B120)","v":""},{"$f":"IF('COACHES WORKSHEET'!C120=0,\"\",'COACHES WORKSHEET'!C120)","v":""},{"$f":"IF('COACHES WORKSHEET'!D120=0,\"\",'COACHES WORKSHEET'!D120)","v":""},{"$f":"'COACHES WORKSHEET'!C1","v":"Enter School Here"},null,null,{"$f":"'COACHES WORKSHEET'!E120","v":0},{"$f":"'COACHES WORKSHEET'!F120","v":0},null,null,null,"",""]
[{"$f":"IF('COACHES WORKSHEET'!B129=0,\"\",'COACHES WORKSHEET'!B129)","v":""},{"$f":"IF('COACHES WORKSHEET'!C129=0,\"\",'COACHES WORKSHEET'!C129)","v":""},{"$f":"IF('COACHES WORKSHEET'!D129=0,\"\",'COACHES WORKSHEET'!D129)","v":""},{"$f":"'COACHES WORKSHEET'!C1","v":"Enter School Here"},null,null,{"$f":"'COACHES WORKSHEET'!E129","v":0},{"$f":"'COACHES WORKSHEET'!F129","v":0},null,null,null,"",""]